Workbook

Sheet Mapping
B2: Welcome to "Create Your Own Multi-Dimensional Perceptual Map"
B3: Follow the Steps in Yellow
B4: Only enter data/information in the Blue cells
B5: The Grey cells provide additional information | G5: Or you can watch the YouTube video at | K5: How to Use Video
C6: For more information on Perceptual Maps visit: | G6: www.perceptualmaps.com | K6: Or email: geoff@perceptualmaps.com
B9: STEP ONE | C9: Enter the Title of Your Map | E9: Soft Drinks Year One
E10: (This is an example only. Simply type over this map title.)
E13: STEP THREE >>> | H13: Enter Attribute Label Across >>> (from E16 to P16) | AI13: 1 | AJ13: =+AI13 -> 1 | AK13: =+AJ13 -> 1 | AL13: =+AK13 -> 1 | AM13: 1 | AN13: 1 | AO13: 1 | AP13: 1 | AQ13: 1 | AR13: =+AQ13 -> 1 | AS13: 1 | AT13: 2 | AU13: =+AT13 -> 2 | AV13: 2 | AW13: 2 | AX13: 2 | AY13: 2 | AZ13: 2 | BA13: =+AZ13 -> 2 | BB13: 2 | BC13: 2 | BD13: 3 | BE13: =+BD13 -> 3 | BF13: 3 | BG13: 3 | BH13: 3 | BI13: 3 | BJ13: 3 | BK13: 3 | BL13: =+BK13 -> 3 | BM13: 4 | BN13: 4 | BO13: =+BN13 -> 4 | BP13: 4 | BQ13: 4 | BR13: 4 | BS13: 4 | BT13: =+BS13 -> 4 | BU13: 5 | BV13: 5 | BW13: =+BV13 -> 5 | BX13: 5 | BY13: 5 | BZ13: 5 | CA13: 5 | CB13: 6 | CC13: =+CB13 -> 6 | CD13: 6 | CE13: 6 | CF13: 6 | CG13: 6 | CH13: 7 | CI13: =+CH13 -> 7 | CJ13: 7 | CK13: 7 | CL13: 7 | CM13: 8 | CN13: =+CM13 -> 8 | CO13: 8 | CP13: 8 | CQ13: 9 | CR13: =+CQ13 -> 9 | CS13: 9 | CT13: 10 | CU13: =+CT13 -> 10 | CV13: 11
B14: STEP TWO | C14: Enter Brands Below | E14: You may enter up to 12 attributes | H14: Some examples provided, simply type over the top to enter your own attributes | AI14: 2 | AJ14: =+AI14+1 -> 3 | AK14: =+AJ14+1 -> 4 | AL14: =+AK14+1 -> 5 | AM14: 6 | AN14: 7 | AO14: 8 | AP14: 9 | AQ14: 10 | AR14: =+AQ14+1 -> 11 | AS14: 12 | AT14: 3 | AU14: =+AT14+1 -> 4 | AV14: 5 | AW14: 6 | AX14: 7 | AY14: 8 | AZ14: 9 | BA14: =+AZ14+1 -> 10 | BB14: 11 | BC14: 12 | BD14: 4 | BE14: =+BD14+1 -> 5 | BF14: 6 | BG14: 7 | BH14: 8 | BI14: 9 | BJ14: 10 | BK14: 11 | BL14: =+BK14+1 -> 12 | BM14: 5 | BN14: 6 | BO14: =+BN14+1 -> 7 | BP14: 8 | BQ14: 9 | BR14: 10 | BS14: 11 | BT14: =+BS14+1 -> 12 | BU14: 6 | BV14: 7 | BW14: =+BV14+1 -> 8 | BX14: 9 | BY14: 10 | BZ14: 11 | CA14: 12 | CB14: 7 | CC14: =+CB14+1 -> 8 | CD14: 9 | CE14: 10 | CF14: 11 | CG14: 12 | CH14: 8 | CI14: =+CH14+1 -> 9 | CJ14: 10 | CK14: 11 | CL14: 12 | CM14: 9 | CN14: =+CM14+1 -> 10 | CO14: 11 | CP14: 12 | CQ14: 10 | CR14: =+CQ14+1 -> 11 | CS14: 12 | CT14: 11 | CU14: =+CT14+1 -> 12 | CV14: 12
C15: You may enter up to 12 brands | E15: 1 | F15: 2 | G15: 3 | H15: 4 | I15: 5 | J15: 6 | K15: 7 | L15: 8 | M15: 9 | N15: 10 | O15: 11 | P15: 12
C16: Some examples provided, simply type over the top to enter your own brands | E16: Sweet | F16: For Kids | G16: High caffeine | H16: Modern | I16: Low in sugar | J16: Trusted | K16: Clear | L16: Tangy | M16: Adult | N16: Bitter | O16: Friendy | P16: For diets
C17: 1 | D17: Coke | E17: 6 | F17: 5 | G17: 7 | H17: 5 | I17: 3 | J17: 9 | K17: 1 | L17: 5 | M17: 7 | N17: 2 | O17: 5 | P17: 2 | AH17: 2 | AI17: =IFERROR(IF(AND(HLOOKUP(AI$13,brand_data,$AH17)>0.5,HLOOKUP(AI$14,brand_data,$AH17)>0.5),SQRT(((HLOOKUP(AI$13,brand_data,$AH17)-HLOOKUP(AI$14,brand_data,$AH17)))^2),""),"") -> 1 | AJ17: =IFERROR(IF(AND(HLOOKUP(AJ$13,brand_data,$AH17)>0.5,HLOOKUP(AJ$14,brand_data,$AH17)>0.5),SQRT(((HLOOKUP(AJ$13,brand_data,$AH17)-HLOOKUP(AJ$14,brand_data,$AH17)))^2),""),"") -> 1 | AK17: 1 | AL17: 3 | AM17: 3 | AN17: 5 | AO17: 1 | AP17: 1 | AQ17: 4 | AR17: 1 | AS17: =IFERROR(IF(AND(HLOOKUP(AS$13,brand_data,$AH17)>0.5,HLOOKUP(AS$14,brand_data,$AH17)>0.5),SQRT(((HLOOKUP(AS$13,brand_data,$AH17)-HLOOKUP(AS$14,brand_data,$AH17)))^2),""),"") -> 4 | AT17: 2 | AU17: 0 | AV17: 2 | AW17: 4 | AX17: 4 | AY17: 0 | AZ17: 2 | BA17: 3 | BB17: 0 | BC17: =IFERROR(IF(AND(HLOOKUP(BC$13,brand_data,$AH17)>0.5,HLOOKUP(BC$14,brand_data,$AH17)>0.5),SQRT(((HLOOKUP(BC$13,brand_data,$AH17)-HLOOKUP(BC$14,brand_data,$AH17)))^2),""),"") -> 3 | BD17: 2 | BE17: 4 | BF17: 2 | BG17: 6 | BH17: 2 | BI17: 0 | BJ17: 5 | BK17: 2 | BL17: 5 | BM17: =IFERROR(IF(AND(HLOOKUP(BM$13,brand_data,$AH17)>0.5,HLOOKUP(BM$14,brand_data,$AH17)>0.5),SQRT(((HLOOKUP(BM$13,brand_data,$AH17)-HLOOKUP(BM$14,brand_data,$AH17)))^2),""),"") -> 2 | BN17: 4 | BO17: 4 | BP17: 0 | BQ17: 2 | BR17: 3 | BS17: 0 | BT17: 3 | BU17: 6 | BV17: 2 | BW17: =IFERROR(IF(AND(HLOOKUP(BW$13,brand_data,$AH17)>0.5,HLOOKUP(BW$14,brand_data,$AH17)>0.5),SQRT(((HLOOKUP(BW$13,brand_data,$AH17)-HLOOKUP(BW$14,brand_data,$AH17)))^2),""),"") -> 2 | BX17: 4 | BY17: 1 | BZ17: 2 | CA17: 1 | CB17: 8 | CC17: 4 | CD17: 2 | CE17: 7 | CF17: 4 | CG17: =IFERROR(IF(AND(HLOOKUP(CG$13,brand_data,$AH17)>0.5,HLOOKUP(CG$14,brand_data,$AH17)>0.5),SQRT(((HLOOKUP(CG$13,brand_data,$AH17)-HLOOKUP(CG$14,brand_data,$AH17)))^2),""),"") -> 7 | CH17: 4 | CI17: 6 | CJ17: 1 | CK17: 4 | CL17: 1 | CM17: 2 | CN17: 3 | CO17: 0 | CP17: 3 | CQ17: =IFERROR(IF(AND(HLOOKUP(CQ$13,brand_data,$AH17)>0.5,HLOOKUP(CQ$14,brand_data,$AH17)>0.5),SQRT(((HLOOKUP(CQ$13,brand_data,$AH17)-HLOOKUP(CQ$14,brand_data,$AH17)))^2),""),"") -> 5 | CR17: 2 | CS17: 5 | CT17: 3 | CU17: 0 | CV17: 3
C18: 2 | D18: Pepsi | E18: 9 | F18: 6 | G18: 7 | H18: 7 | I18: 1 | J18: 7 | K18: 1 | L18: 5 | M18: 6 | N18: 1 | O18: 6 | P18: 1 | AH18: =+AH17+1 -> 3 | AI18: 3 | AJ18: 2 | AK18: 2 | AL18: 8 | AM18: 2 | AN18: 8 | AO18: 4 | AP18: 3 | AQ18: 8 | AR18: 3 | AS18: 8 | AT18: 1 | AU18: 1 | AV18: 5 | AW18: 1 | AX18: 5 | AY18: 1 | AZ18: 0 | BA18: 5 | BB18: 0 | BC18: 5 | BD18: 0 | BE18: 6 | BF18: 0 | BG18: 6 | BH18: 2 | BI18: 1 | BJ18: 6 | BK18: 1 | BL18: 6 | BM18: 6 | BN18: 0 | BO18: 6 | BP18: 2 | BQ18: 1 | BR18: 6 | BS18: 1 | BT18: 6 | BU18: 6 | BV18: 0 | BW18: 4 | BX18: 5 | BY18: 0 | BZ18: 5 | CA18: 0 | CB18: 6 | CC18: 2 | CD18: 1 | CE18: 6 | CF18: 1 | CG18: 6 | CH18: 4 | CI18: 5 | CJ18: 0 | CK18: 5 | CL18: 0 | CM18: 1 | CN18: 4 | CO18: 1 | CP18: 4 | CQ18: 5 | CR18: 0 | CS18: 5 | CT18: 5 | CU18: 0 | CV18: 5
C19: 3 | D19: Fanta | E19: 8 | F19: 9 | G19: 2 | H19: 3 | I19: 1 | J19: 5 | K19: 4 | L19: 7 | M19: 2 | N19: 1 | O19: 6 | P19: 1 | AH19: =+AH18+1 -> 4 | AI19: 1 | AJ19: 6 | AK19: 5 | AL19: 7 | AM19: 3 | AN19: 4 | AO19: 1 | AP19: 6 | AQ19: 7 | AR19: 2 | AS19: 7 | AT19: 7 | AU19: 6 | AV19: 8 | AW19: 4 | AX19: 5 | AY19: 2 | AZ19: 7 | BA19: 8 | BB19: 3 | BC19: 8 | BD19: 1 | BE19: 1 | BF19: 3 | BG19: 2 | BH19: 5 | BI19: 0 | BJ19: 1 | BK19: 4 | BL19: 1 | BM19: 2 | BN19: 2 | BO19: 1 | BP19: 4 | BQ19: 1 | BR19: 2 | BS19: 3 | BT19: 2 | BU19: 4 | BV19: 3 | BW19: 6 | BX19: 1 | BY19: 0 | BZ19: 5 | CA19: 0 | CB19: 1 | CC19: 2 | CD19: 3 | CE19: 4 | CF19: 1 | CG19: 4 | CH19: 3 | CI19: 2 | CJ19: 3 | CK19: 2 | CL19: 3 | CM19: 5 | CN19: 6 | CO19: 1 | CP19: 6 | CQ19: 1 | CR19: 4 | CS19: 1 | CT19: 5 | CU19: 0 | CV19: 5
C20: 4 | D20: Sprite | E20: 4 | F20: 4 | G20: 1 | H20: 6 | I20: 6 | J20: 5 | K20: 7 | L20: 8 | M20: 5 | N20: 2 | O20: 6 | P20: 3 | AH20: 5 | AI20: 0 | AJ20: 3 | AK20: 2 | AL20: 2 | AM20: 1 | AN20: 3 | AO20: 4 | AP20: 1 | AQ20: 2 | AR20: 2 | AS20: 1 | AT20: 3 | AU20: 2 | AV20: 2 | AW20: 1 | AX20: 3 | AY20: 4 | AZ20: 1 | BA20: 2 | BB20: 2 | BC20: 1 | BD20: 5 | BE20: 5 | BF20: 4 | BG20: 6 | BH20: 7 | BI20: 4 | BJ20: 1 | BK20: 5 | BL20: 2 | BM20: 0 | BN20: 1 | BO20: 1 | BP20: 2 | BQ20: 1 | BR20: 4 | BS20: 0 | BT20: 3 | BU20: 1 | BV20: 1 | BW20: 2 | BX20: 1 | BY20: 4 | BZ20: 0 | CA20: 3 | CB20: 2 | CC20: 3 | CD20: 0 | CE20: 3 | CF20: 1 | CG20: 2 | CH20: 1 | CI20: 2 | CJ20: 5 | CK20: 1 | CL20: 4 | CM20: 3 | CN20: 6 | CO20: 2 | CP20: 5 | CQ20: 3 | CR20: 1 | CS20: 2 | CT20: 4 | CU20: 1 | CV20: 3
C21: 5 | D21: Pepsi Max | E21: 3 | F21: 2 | G21: 9 | H21: 6 | I21: 7 | J21: 3 | K21: 2 | L21: 5 | M21: 6 | N21: 7 | O21: 2 | P21: 7 | AH21: 6 | AI21: 1 | AJ21: 6 | AK21: 3 | AL21: 4 | AM21: 0 | AN21: 1 | AO21: 2 | AP21: 3 | AQ21: 4 | AR21: 1 | AS21: 4 | AT21: 7 | AU21: 4 | AV21: 5 | AW21: 1 | AX21: 0 | AY21: 3 | AZ21: 4 | BA21: 5 | BB21: 0 | BC21: 5 | BD21: 3 | BE21: 2 | BF21: 6 | BG21: 7 | BH21: 4 | BI21: 3 | BJ21: 2 | BK21: 7 | BL21: 2 | BM21: 1 | BN21: 3 | BO21: 4 | BP21: 1 | BQ21: 0 | BR21: 1 | BS21: 4 | BT21: 1 | BU21: 4 | BV21: 5 | BW21: 2 | BX21: 1 | BY21: 0 | BZ21: 5 | CA21: 0 | CB21: 1 | CC21: 2 | CD21: 3 | CE21: 4 | CF21: 1 | CG21: 4 | CH21: 3 | CI21: 4 | CJ21: 5 | CK21: 0 | CL21: 5 | CM21: 1 | CN21: 2 | CO21: 3 | CP21: 2 | CQ21: 1 | CR21: 4 | CS21: 1 | CT21: 5 | CU21: 0 | CV21: 5
C22: 6 | D22: Coke Zero | E22: 5 | F22: 4 | G22: 7 | H22: 8 | I22: 9 | J22: 5 | K22: 2 | L22: 4 | M22: 6 | N22: 5 | O22: 2 | P22: 7 | AH22: 7 | AI22: 1 | AJ22: 2 | AK22: 3 | AL22: 4 | AM22: 0 | AN22: 3 | AO22: 1 | AP22: 1 | AQ22: 0 | AR22: 3 | AS22: 2 | AT22: 3 | AU22: 4 | AV22: 5 | AW22: 1 | AX22: 2 | AY22: 0 | AZ22: 2 | BA22: 1 | BB22: 2 | BC22: 3 | BD22: 1 | BE22: 2 | BF22: 2 | BG22: 5 | BH22: 3 | BI22: 1 | BJ22: 2 | BK22: 5 | BL22: 0 | BM22: 1 | BN22: 3 | BO22: 6 | BP22: 4 | BQ22: 2 | BR22: 3 | BS22: 6 | BT22: 1 | BU22: 4 | BV22: 7 | BW22: 5 | BX22: 3 | BY22: 4 | BZ22: 7 | CA22: 2 | CB22: 3 | CC22: 1 | CD22: 1 | CE22: 0 | CF22: 3 | CG22: 2 | CH22: 2 | CI22: 4 | CJ22: 3 | CK22: 0 | CL22: 5 | CM22: 2 | CN22: 1 | CO22: 2 | CP22: 3 | CQ22: 1 | CR22: 4 | CS22: 1 | CT22: 3 | CU22: 2 | CV22: 5
C23: 7 | D23: Water | E23: 2 | F23: 5 | G23: 1 | H23: 2 | I23: 9 | J23: 9 | K23: 9 | L23: 3 | M23: 5 | N23: 4 | O23: 3 | P23: 9 | AH23: 8 | AI23: 3 | AJ23: 1 | AK23: 0 | AL23: 7 | AM23: 7 | AN23: 7 | AO23: 1 | AP23: 3 | AQ23: 2 | AR23: 1 | AS23: 7 | AT23: 4 | AU23: 3 | AV23: 4 | AW23: 4 | AX23: 4 | AY23: 2 | AZ23: 0 | BA23: 1 | BB23: 2 | BC23: 4 | BD23: 1 | BE23: 8 | BF23: 8 | BG23: 8 | BH23: 2 | BI23: 4 | BJ23: 3 | BK23: 2 | BL23: 8 | BM23: 7 | BN23: 7 | BO23: 7 | BP23: 1 | BQ23: 3 | BR23: 2 | BS23: 1 | BT23: 7 | BU23: 0 | BV23: 0 | BW23: 6 | BX23: 4 | BY23: 5 | BZ23: 6 | CA23: 0 | CB23: 0 | CC23: 6 | CD23: 4 | CE23: 5 | CF23: 6 | CG23: 0 | CH23: 6 | CI23: 4 | CJ23: 5 | CK23: 6 | CL23: 0 | CM23: 2 | CN23: 1 | CO23: 0 | CP23: 6 | CQ23: 1 | CR23: 2 | CS23: 4 | CT23: 1 | CU23: 5 | CV23: 6
C24: 8 | D24: Mt Dew | E24: 8 | F24: 4 | G24: 6 | H24: 3 | I24: 4 | J24: 5 | K24: 6 | L24: 9 | M24: 6 | N24: 3 | O24: 4 | P24: 3 | AH24: 9 | AI24: 4 | AJ24: 2 | AK24: 5 | AL24: 4 | AM24: 3 | AN24: 2 | AO24: 1 | AP24: 2 | AQ24: 5 | AR24: 4 | AS24: 5 | AT24: 2 | AU24: 1 | AV24: 0 | AW24: 1 | AX24: 2 | AY24: 5 | AZ24: 2 | BA24: 1 | BB24: 0 | BC24: 1 | BD24: 3 | BE24: 2 | BF24: 1 | BG24: 0 | BH24: 3 | BI24: 0 | BJ24: 3 | BK24: 2 | BL24: 3 | BM24: 1 | BN24: 2 | BO24: 3 | BP24: 6 | BQ24: 3 | BR24: 0 | BS24: 1 | BT24: 0 | BU24: 1 | BV24: 2 | BW24: 5 | BX24: 2 | BY24: 1 | BZ24: 0 | CA24: 1 | CB24: 1 | CC24: 4 | CD24: 1 | CE24: 2 | CF24: 1 | CG24: 2 | CH24: 3 | CI24: 0 | CJ24: 3 | CK24: 2 | CL24: 3 | CM24: 3 | CN24: 6 | CO24: 5 | CP24: 6 | CQ24: 3 | CR24: 2 | CS24: 3 | CT24: 1 | CU24: 0 | CV24: 1
C25: 9 | D25: Dr Pepper | E25: 2 | F25: 1 | G25: 5 | H25: 4 | I25: 3 | J25: 4 | K25: 3 | L25: 6 | M25: 8 | N25: 9 | O25: 2 | P25: 4 | AH25: 10 | AI25: 1 | AJ25: 3 | AK25: 2 | AL25: 1 | AM25: 2 | AN25: 1 | AO25: 4 | AP25: 6 | AQ25: 7 | AR25: 0 | AS25: 2 | AT25: 4 | AU25: 3 | AV25: 2 | AW25: 3 | AX25: 2 | AY25: 5 | AZ25: 7 | BA25: 8 | BB25: 1 | BC25: 3 | BD25: 1 | BE25: 2 | BF25: 1 | BG25: 2 | BH25: 1 | BI25: 3 | BJ25: 4 | BK25: 3 | BL25: 1 | BM25: 1 | BN25: 0 | BO25: 1 | BP25: 2 | BQ25: 4 | BR25: 5 | BS25: 2 | BT25: 0 | BU25: 1 | BV25: 0 | BW25: 3 | BX25: 5 | BY25: 6 | BZ25: 1 | CA25: 1 | CB25: 1 | CC25: 2 | CD25: 4 | CE25: 5 | CF25: 2 | CG25: 0 | CH25: 3 | CI25: 5 | CJ25: 6 | CK25: 1 | CL25: 1 | CM25: 2 | CN25: 3 | CO25: 4 | CP25: 2 | CQ25: 1 | CR25: 6 | CS25: 4 | CT25: 7 | CU25: 5 | CV25: 2
C26: 10 | D26: Diet Coke | E26: 3 | F26: 2 | G26: 7 | H26: 4 | I26: 2 | J26: 7 | K26: 3 | L26: 5 | M26: 8 | N26: 7 | O26: 9 | P26: 8 | AH26: 11 | AI26: 1 | AJ26: 4 | AK26: 1 | AL26: 1 | AM26: 4 | AN26: 0 | AO26: 2 | AP26: 5 | AQ26: 4 | AR26: 6 | AS26: 5 | AT26: 5 | AU26: 2 | AV26: 0 | AW26: 5 | AX26: 1 | AY26: 3 | AZ26: 6 | BA26: 5 | BB26: 7 | BC26: 6 | BD26: 3 | BE26: 5 | BF26: 0 | BG26: 4 | BH26: 2 | BI26: 1 | BJ26: 0 | BK26: 2 | BL26: 1 | BM26: 2 | BN26: 3 | BO26: 1 | BP26: 1 | BQ26: 4 | BR26: 3 | BS26: 5 | BT26: 4 | BU26: 5 | BV26: 1 | BW26: 3 | BX26: 6 | BY26: 5 | BZ26: 7 | CA26: 6 | CB26: 4 | CC26: 2 | CD26: 1 | CE26: 0 | CF26: 2 | CG26: 1 | CH26: 2 | CI26: 5 | CJ26: 4 | CK26: 6 | CL26: 5 | CM26: 3 | CN26: 2 | CO26: 4 | CP26: 3 | CQ26: 1 | CR26: 1 | CS26: 0 | CT26: 2 | CU26: 1 | CV26: 1
C27: 11 | D27: Pepsi Next | E27: 6 | F27: 6 | G27: 8 | H27: 8 | I27: 6 | J27: 5 | K27: 3 | L27: 6 | M27: 4 | N27: 5 | O27: 6 | P27: 4 | AH27: 12 | AI27: 0 | AJ27: 2 | AK27: 2 | AL27: 0 | AM27: 1 | AN27: 3 | AO27: 0 | AP27: 2 | AQ27: 1 | AR27: 0 | AS27: 2 | AT27: 2 | AU27: 2 | AV27: 0 | AW27: 1 | AX27: 3 | AY27: 0 | AZ27: 2 | BA27: 1 | BB27: 0 | BC27: 2 | BD27: 0 | BE27: 2 | BF27: 3 | BG27: 5 | BH27: 2 | BI27: 4 | BJ27: 3 | BK27: 2 | BL27: 4 | BM27: 2 | BN27: 3 | BO27: 5 | BP27: 2 | BQ27: 4 | BR27: 3 | BS27: 2 | BT27: 4 | BU27: 1 | BV27: 3 | BW27: 0 | BX27: 2 | BY27: 1 | BZ27: 0 | CA27: 2 | CB27: 2 | CC27: 1 | CD27: 1 | CE27: 0 | CF27: 1 | CG27: 1 | CH27: 3 | CI27: 1 | CJ27: 2 | CK27: 3 | CL27: 1 | CM27: 2 | CN27: 1 | CO27: 0 | CP27: 2 | CQ27: 1 | CR27: 2 | CS27: 0 | CT27: 1 | CU27: 1 | CV27: 2
C28: 12 | D28: Lift | E28: 8 | F28: 6 | G28: 2 | H28: 6 | I28: 3 | J28: 4 | K28: 6 | L28: 9 | M28: 2 | N28: 3 | O28: 5 | P28: 2 | AH28: 13 | AI28: 2 | AJ28: 6 | AK28: 2 | AL28: 5 | AM28: 4 | AN28: 2 | AO28: 1 | AP28: 6 | AQ28: 5 | AR28: 3 | AS28: 6 | AT28: 4 | AU28: 0 | AV28: 3 | AW28: 2 | AX28: 0 | AY28: 3 | AZ28: 4 | BA28: 3 | BB28: 1 | BC28: 4 | BD28: 4 | BE28: 1 | BF28: 2 | BG28: 4 | BH28: 7 | BI28: 0 | BJ28: 1 | BK28: 3 | BL28: 0 | BM28: 3 | BN28: 2 | BO28: 0 | BP28: 3 | BQ28: 4 | BR28: 3 | BS28: 1 | BT28: 4 | BU28: 1 | BV28: 3 | BW28: 6 | BX28: 1 | BY28: 0 | BZ28: 2 | CA28: 1 | CB28: 2 | CC28: 5 | CD28: 2 | CE28: 1 | CF28: 1 | CG28: 2 | CH28: 3 | CI28: 4 | CJ28: 3 | CK28: 1 | CL28: 4 | CM28: 7 | CN28: 6 | CO28: 4 | CP28: 7 | CQ28: 1 | CR28: 3 | CS28: 0 | CT28: 2 | CU28: 1 | CV28: 3
D30: STEP FOUR | E30: Enter the attribute score (using a 1-9 scale) for each brand in the above table | AI30: =IFERROR(AVERAGE(AI17:AI28),"") -> 1.5 | AJ30: =IFERROR(AVERAGE(AJ17:AJ28),"") -> 3.166666667 | AK30: 2.333333333 | AL30: 3.833333333 | AM30: 2.5 | AN30: 3.25 | AO30: 1.833333333 | AP30: 3.25 | AQ30: 4.083333333 | AR30: 2.166666667 | AS30: 4.416666667 | AT30: 3.666666667 | AU30: 2.333333333 | AV30: 3 | AW30: 2.333333333 | AX30: 2.583333333 | AY30: 2.333333333 | AZ30: 3.083333333 | BA30: 3.583333333 | BB30: 1.5 | BC30: 3.75 | BD30: 2 | BE30: 3.333333333 | BF30: 2.666666667 | BG30: 4.583333333 | BH30: 3.333333333 | BI30: 1.75 | BJ30: 2.583333333 | BK30: 3.166666667 | BL30: 2.75 | BM30: 2.333333333 | BN30: 2.5 | BO30: 3.25 | BP30: 2.333333333 | BQ30: 2.416666667 | BR30: 2.916666667 | BS30: 2.166666667 | BT30: 2.916666667 | BU30: 2.833333333 | BV30: 2.25 | BW30: 3.666666667 | BX30: 2.916666667 | BY30: 2.25 | BZ30: 3.333333333 | CA30: 1.416666667 | CB30: 2.583333333 | CC30: 2.833333333 | CD30: 1.916666667 | CE30: 3.083333333 | CF30: 2 | CG30: 2.583333333 | CH30: 3.083333333 | CI30: 3.5 | CJ30: 3.333333333 | CK30: 2.583333333 | CL30: 2.666666667 | CM30: 2.75 | CN30: 3.416666667 | CO30: 2.166666667 | CP30: 4.083333333 | CQ30: 2 | CR30: 2.583333333 | CS30: 2.166666667 | CT30: 3.25 | CU30: 1.333333333 | CV30: =IFERROR(AVERAGE(CV17:CV28),"") -> 3.416666667
E31: The higher the number = the greater association that the brand has with that attribute
E32: For example, 1 = no association with the attribute, 5 = some association and 9 = very high association | AI32: 1 | AJ32: =+AI32 -> 1 | AK32: =+AJ32 -> 1 | AL32: =+AK32 -> 1 | AM32: 1 | AN32: 1 | AO32: 1 | AP32: 1 | AQ32: 1 | AR32: 1 | AS32: 1 | AT32: 2 | AU32: =+AT32 -> 2 | AV32: 2 | AW32: 2 | AX32: 2 | AY32: 2 | AZ32: 2 | BA32: 2 | BB32: 2 | BC32: 2 | BD32: 3 | BE32: =+BD32 -> 3 | BF32: 3 | BG32: 3 | BH32: 3 | BI32: 3 | BJ32: 3 | BK32: 3 | BL32: 3 | BM32: 4 | BN32: =+BM32 -> 4 | BO32: 4 | BP32: 4 | BQ32: 4 | BR32: 4 | BS32: 4 | BT32: 4 | BU32: 5 | BV32: =+BU32 -> 5 | BW32: 5 | BX32: 5 | BY32: 5 | BZ32: 5 | CA32: 5 | CB32: 6 | CC32: =+CB32 -> 6 | CD32: 6 | CE32: 6 | CF32: 6 | CG32: 6 | CH32: 7 | CI32: =+CH32 -> 7 | CJ32: 7 | CK32: 7 | CL32: 7 | CM32: 8 | CN32: =+CM32 -> 8 | CO32: 8 | CP32: 8 | CQ32: 9 | CR32: =+CQ32 -> 9 | CS32: 9 | CT32: 10 | CU32: =+CT32 -> 10 | CV32: 11
AI33: 2 | AJ33: =+AI33+1 -> 3 | AK33: =+AJ33+1 -> 4 | AL33: =+AK33+1 -> 5 | AM33: 6 | AN33: 7 | AO33: 8 | AP33: 9 | AQ33: 10 | AR33: 11 | AS33: 12 | AT33: 3 | AU33: =+AT33+1 -> 4 | AV33: 5 | AW33: 6 | AX33: 7 | AY33: 8 | AZ33: 9 | BA33: 10 | BB33: 11 | BC33: 12 | BD33: 4 | BE33: =+BD33+1 -> 5 | BF33: 6 | BG33: 7 | BH33: 8 | BI33: 9 | BJ33: 10 | BK33: 11 | BL33: 12 | BM33: 5 | BN33: =+BM33+1 -> 6 | BO33: 7 | BP33: 8 | BQ33: 9 | BR33: 10 | BS33: 11 | BT33: 12 | BU33: 6 | BV33: =+BU33+1 -> 7 | BW33: 8 | BX33: 9 | BY33: 10 | BZ33: 11 | CA33: 12 | CB33: 7 | CC33: =+CB33+1 -> 8 | CD33: 9 | CE33: 10 | CF33: 11 | CG33: 12 | CH33: 8 | CI33: =+CH33+1 -> 9 | CJ33: 10 | CK33: 11 | CL33: 12 | CM33: 9 | CN33: =+CM33+1 -> 10 | CO33: 11 | CP33: 12 | CQ33: 10 | CR33: =+CQ33+1 -> 11 | CS33: 12 | CT33: 11 | CU33: =+CT33+1 -> 12 | CV33: 12
F34: Important Note for Apple Mac users
D35: STEP FIVE | E35: Ensure that your spreadsheet has the 'Solver add-in' loaded
E36: In the top menu of Excel click "File" then select "Options" and then select "Add-Ins" | AH36: 2 | AI36: =IFERROR(SQRT(((HLOOKUP(AI$13,reverse_data,$AH36)-HLOOKUP(AI$14,reverse_data,$AH36)))^2),"") -> 3 | AJ36: 2 | AK36: 2 | AL36: 3 | AM36: 1 | AN36: 4 | AO36: 2 | AP36: 4 | AQ36: 3 | AR36: 0 | AS36: =IFERROR(SQRT(((HLOOKUP(AS$13,reverse_data,$AH36)-HLOOKUP(AS$14,reverse_data,$AH36)))^2),"") -> 2 | AT36: 1 | AU36: 5 | AV36: 6 | AW36: 4 | AX36: 7 | AY36: 1 | AZ36: 7 | BA36: 6 | BB36: 3 | BC36: =IFERROR(SQRT(((HLOOKUP(BC$13,reverse_data,$AH36)-HLOOKUP(BC$14,reverse_data,$AH36)))^2),"") -> 1 | BD36: 4 | BE36: 5 | BF36: 3 | BG36: 6 | BH36: 0 | BI36: 6 | BJ36: 5 | BK36: 2 | BL36: 0 | BM36: =IFERROR(SQRT(((HLOOKUP(BM$13,reverse_data,$AH36)-HLOOKUP(BM$14,reverse_data,$AH36)))^2),"") -> 1 | BN36: 1 | BO36: 2 | BP36: 4 | BQ36: 2 | BR36: 1 | BS36: 2 | BT36: 4 | BU36: 2 | BV36: 1 | BW36: =IFERROR(SQRT(((HLOOKUP(BW$13,reverse_data,$AH36)-HLOOKUP(BW$14,reverse_data,$AH36)))^2),"") -> 5 | BX36: 1 | BY36: 0 | BZ36: 3 | CA36: 5 | CB36: 3 | CC36: 3 | CD36: 3 | CE36: 2 | CF36: 1 | CG36: =IFERROR(SQRT(((HLOOKUP(CG$13,reverse_data,$AH36)-HLOOKUP(CG$14,reverse_data,$AH36)))^2),"") -> 3 | CH36: 6 | CI36: 0 | CJ36: 1 | CK36: 4 | CL36: 6 | CM36: 6 | CN36: 5 | CO36: 2 | CP36: 0 | CQ36: =IFERROR(SQRT(((HLOOKUP(CQ$13,reverse_data,$AH36)-HLOOKUP(CQ$14,reverse_data,$AH36)))^2),"") -> 1 | CR36: 4 | CS36: 6 | CT36: 3 | CU36: 5 | CV36: 2
E37: Then click 'Go' next to 'Manage Excel Add-ins' and select the 'Solver Add-in' (as shown below) | AH37: =+AH36+1 -> 3 | AI37: 1 | AJ37: 4 | AK37: 1 | AL37: 3 | AM37: 1 | AN37: 0 | AO37: 1 | AP37: 4 | AQ37: 3 | AR37: 1 | AS37: 1 | AT37: 3 | AU37: 2 | AV37: 4 | AW37: 2 | AX37: 1 | AY37: 2 | AZ37: 5 | BA37: 4 | BB37: 0 | BC37: 0 | BD37: 5 | BE37: 7 | BF37: 5 | BG37: 4 | BH37: 5 | BI37: 8 | BJ37: 7 | BK37: 3 | BL37: 3 | BM37: 2 | BN37: 0 | BO37: 1 | BP37: 0 | BQ37: 3 | BR37: 2 | BS37: 2 | BT37: 2 | BU37: 2 | BV37: 3 | BW37: 2 | BX37: 1 | BY37: 0 | BZ37: 4 | CA37: 4 | CB37: 1 | CC37: 0 | CD37: 3 | CE37: 2 | CF37: 2 | CG37: 2 | CH37: 1 | CI37: 4 | CJ37: 3 | CK37: 1 | CL37: 1 | CM37: 3 | CN37: 2 | CO37: 2 | CP37: 2 | CQ37: 1 | CR37: 5 | CS37: 5 | CT37: 4 | CU37: 4 | CV37: 0
B38: STEP SIX | D38: Follow the sequence as shown | E38: Please note that these options are standard with every version of Excel, including the student version | O38: ATTENTION APPLE MAC USERS!!! | AH38: =+AH37+1 -> 4 | AI38: 0 | AJ38: 5 | AK38: 6 | AL38: 2 | AM38: 0 | AN38: 6 | AO38: 1 | AP38: 2 | AQ38: 0 | AR38: 1 | AS38: 5 | AT38: 5 | AU38: 6 | AV38: 2 | AW38: 0 | AX38: 6 | AY38: 1 | AZ38: 2 | BA38: 0 | BB38: 1 | BC38: 5 | BD38: 1 | BE38: 7 | BF38: 5 | BG38: 1 | BH38: 4 | BI38: 3 | BJ38: 5 | BK38: 6 | BL38: 0 | BM38: 8 | BN38: 6 | BO38: 0 | BP38: 5 | BQ38: 4 | BR38: 6 | BS38: 7 | BT38: 1 | BU38: 2 | BV38: 8 | BW38: 3 | BX38: 4 | BY38: 2 | BZ38: 1 | CA38: 7 | CB38: 6 | CC38: 1 | CD38: 2 | CE38: 0 | CF38: 1 | CG38: 5 | CH38: 5 | CI38: 4 | CJ38: 6 | CK38: 7 | CL38: 1 | CM38: 1 | CN38: 1 | CO38: 2 | CP38: 4 | CQ38: 2 | CR38: 3 | CS38: 3 | CT38: 1 | CU38: 5 | CV38: 6
O39: Do not follow the instructions in Step Five | AH39: 5 | AI39: 2 | AJ39: 2 | AK39: 1 | AL39: 1 | AM39: 3 | AN39: 3 | AO39: 2 | AP39: 1 | AQ39: 1 | AR39: 3 | AS39: 1 | AT39: 4 | AU39: 1 | AV39: 1 | AW39: 1 | AX39: 5 | AY39: 4 | AZ39: 3 | BA39: 3 | BB39: 1 | BC39: 1 | BD39: 3 | BE39: 3 | BF39: 5 | BG39: 1 | BH39: 0 | BI39: 1 | BJ39: 1 | BK39: 5 | BL39: 3 | BM39: 0 | BN39: 2 | BO39: 4 | BP39: 3 | BQ39: 2 | BR39: 2 | BS39: 2 | BT39: 0 | BU39: 2 | BV39: 4 | BW39: 3 | BX39: 2 | BY39: 2 | BZ39: 2 | CA39: 0 | CB39: 6 | CC39: 5 | CD39: 4 | CE39: 4 | CF39: 0 | CG39: 2 | CH39: 1 | CI39: 2 | CJ39: 2 | CK39: 6 | CL39: 4 | CM39: 1 | CN39: 1 | CO39: 5 | CP39: 3 | CQ39: 0 | CR39: 4 | CS39: 2 | CT39: 4 | CU39: 2 | CV39: 2
O40: Instead, select 'Tools', then 'Add-ins' and then 'Solver' | AH40: 6 | AI40: 2 | AJ40: 2 | AK40: 3 | AL40: 4 | AM40: 6 | AN40: 6 | AO40: 1 | AP40: 0 | AQ40: 1 | AR40: 3 | AS40: 0 | AT40: 0 | AU40: 5 | AV40: 6 | AW40: 8 | AX40: 8 | AY40: 3 | AZ40: 2 | BA40: 1 | BB40: 5 | BC40: 2 | BD40: 5 | BE40: 6 | BF40: 8 | BG40: 8 | BH40: 3 | BI40: 2 | BJ40: 1 | BK40: 5 | BL40: 2 | BM40: 1 | BN40: 3 | BO40: 3 | BP40: 2 | BQ40: 3 | BR40: 4 | BS40: 0 | BT40: 3 | BU40: 2 | BV40: 2 | BW40: 3 | BX40: 4 | BY40: 5 | BZ40: 1 | CA40: 4 | CB40: 0 | CC40: 5 | CD40: 6 | CE40: 7 | CF40: 3 | CG40: 6 | CH40: 5 | CI40: 6 | CJ40: 7 | CK40: 3 | CL40: 6 | CM40: 1 | CN40: 2 | CO40: 2 | CP40: 1 | CQ40: 1 | CR40: 3 | CS40: 0 | CT40: 4 | CU40: 1 | CV40: 3
O41: You will also need to follow Step Six below | AH41: 7 | AI41: 2 | AJ41: 4 | AK41: 4 | AL41: 6 | AM41: 4 | AN41: 0 | AO41: 4 | AP41: 5 | AQ41: 2 | AR41: 4 | AS41: 5 | AT41: 2 | AU41: 2 | AV41: 4 | AW41: 2 | AX41: 2 | AY41: 2 | AZ41: 3 | BA41: 0 | BB41: 2 | BC41: 3 | BD41: 0 | BE41: 2 | BF41: 0 | BG41: 4 | BH41: 0 | BI41: 1 | BJ41: 2 | BK41: 0 | BL41: 1 | BM41: 2 | BN41: 0 | BO41: 4 | BP41: 0 | BQ41: 1 | BR41: 2 | BS41: 0 | BT41: 1 | BU41: 2 | BV41: 6 | BW41: 2 | BX41: 1 | BY41: 4 | BZ41: 2 | CA41: 1 | CB41: 4 | CC41: 0 | CD41: 1 | CE41: 2 | CF41: 0 | CG41: 1 | CH41: 4 | CI41: 5 | CJ41: 2 | CK41: 4 | CL41: 5 | CM41: 1 | CN41: 2 | CO41: 0 | CP41: 1 | CQ41: 3 | CR41: 1 | CS41: 0 | CT41: 2 | CU41: 3 | CV41: 1
AH42: 8 | AI42: 0 | AJ42: 3 | AK42: 6 | AL42: 1 | AM42: 1 | AN42: 8 | AO42: 5 | AP42: 2 | AQ42: 2 | AR42: 2 | AS42: 5 | AT42: 3 | AU42: 6 | AV42: 1 | AW42: 1 | AX42: 8 | AY42: 5 | AZ42: 2 | BA42: 2 | BB42: 2 | BC42: 5 | BD42: 3 | BE42: 2 | BF42: 2 | BG42: 5 | BH42: 2 | BI42: 1 | BJ42: 1 | BK42: 1 | BL42: 2 | BM42: 5 | BN42: 5 | BO42: 2 | BP42: 1 | BQ42: 4 | BR42: 4 | BS42: 4 | BT42: 1 | BU42: 0 | BV42: 7 | BW42: 4 | BX42: 1 | BY42: 1 | BZ42: 1 | CA42: 4 | CB42: 7 | CC42: 4 | CD42: 1 | CE42: 1 | CF42: 1 | CG42: 4 | CH42: 3 | CI42: 6 | CJ42: 6 | CK42: 6 | CL42: 3 | CM42: 3 | CN42: 3 | CO42: 3 | CP42: 0 | CQ42: 0 | CR42: 0 | CS42: 3 | CT42: 0 | CU42: 3 | CV42: 3
AH43: 9 | AI43: 0 | AJ43: 2 | AK43: 3 | AL43: 0 | AM43: 1 | AN43: 2 | AO43: 4 | AP43: 1 | AQ43: 0 | AR43: 1 | AS43: 4 | AT43: 2 | AU43: 3 | AV43: 0 | AW43: 1 | AX43: 2 | AY43: 4 | AZ43: 1 | BA43: 0 | BB43: 1 | BC43: 4 | BD43: 1 | BE43: 2 | BF43: 3 | BG43: 4 | BH43: 2 | BI43: 1 | BJ43: 2 | BK43: 1 | BL43: 2 | BM43: 3 | BN43: 4 | BO43: 5 | BP43: 1 | BQ43: 2 | BR43: 3 | BS43: 2 | BT43: 1 | BU43: 1 | BV43: 2 | BW43: 4 | BX43: 1 | BY43: 0 | BZ43: 1 | CA43: 4 | CB43: 1 | CC43: 5 | CD43: 2 | CE43: 1 | CF43: 2 | CG43: 5 | CH43: 6 | CI43: 3 | CJ43: 2 | CK43: 3 | CL43: 6 | CM43: 3 | CN43: 4 | CO43: 3 | CP43: 0 | CQ43: 1 | CR43: 0 | CS43: 3 | CT43: 1 | CU43: 4 | CV43: 3
AH44: 10 | AI44: 1 | AJ44: 5 | AK44: 2 | AL44: 1 | AM44: 1 | AN44: 2 | AO44: 1 | AP44: 1 | AQ44: 1 | AR44: 3 | AS44: 5 | AT44: 4 | AU44: 1 | AV44: 0 | AW44: 0 | AX44: 1 | AY44: 0 | AZ44: 2 | BA44: 2 | BB44: 2 | BC44: 4 | BD44: 3 | BE44: 4 | BF44: 4 | BG44: 3 | BH44: 4 | BI44: 6 | BJ44: 6 | BK44: 2 | BL44: 0 | BM44: 1 | BN44: 1 | BO44: 0 | BP44: 1 | BQ44: 3 | BR44: 3 | BS44: 1 | BT44: 3 | BU44: 0 | BV44: 1 | BW44: 0 | BX44: 2 | BY44: 2 | BZ44: 2 | CA44: 4 | CB44: 1 | CC44: 0 | CD44: 2 | CE44: 2 | CF44: 2 | CG44: 4 | CH44: 1 | CI44: 3 | CJ44: 3 | CK44: 1 | CL44: 3 | CM44: 2 | CN44: 2 | CO44: 2 | CP44: 4 | CQ44: 0 | CR44: 4 | CS44: 6 | CT44: 4 | CU44: 6 | CV44: 2
AH45: 11 | AI45: 1 | AJ45: 1 | AK45: 0 | AL45: 5 | AM45: 3 | AN45: 2 | AO45: 1 | AP45: 7 | AQ45: 5 | AR45: 3 | AS45: 1 | AT45: 0 | AU45: 1 | AV45: 6 | AW45: 4 | AX45: 3 | AY45: 2 | AZ45: 8 | BA45: 6 | BB45: 4 | BC45: 2 | BD45: 1 | BE45: 6 | BF45: 4 | BG45: 3 | BH45: 2 | BI45: 8 | BJ45: 6 | BK45: 4 | BL45: 2 | BM45: 5 | BN45: 3 | BO45: 2 | BP45: 1 | BQ45: 7 | BR45: 5 | BS45: 3 | BT45: 1 | BU45: 2 | BV45: 3 | BW45: 4 | BX45: 2 | BY45: 0 | BZ45: 2 | CA45: 4 | CB45: 1 | CC45: 2 | CD45: 4 | CE45: 2 | CF45: 0 | CG45: 2 | CH45: 1 | CI45: 5 | CJ45: 3 | CK45: 1 | CL45: 1 | CM45: 6 | CN45: 4 | CO45: 2 | CP45: 0 | CQ45: 2 | CR45: 4 | CS45: 6 | CT45: 2 | CU45: 4 | CV45: 2
AH46: 12 | AI46: 1 | AJ46: 1 | AK46: 1 | AL46: 3 | AM46: 3 | AN46: 2 | AO46: 1 | AP46: 3 | AQ46: 4 | AR46: 1 | AS46: 0 | AT46: 0 | AU46: 0 | AV46: 4 | AW46: 4 | AX46: 3 | AY46: 2 | AZ46: 4 | BA46: 3 | BB46: 0 | BC46: 1 | BD46: 0 | BE46: 4 | BF46: 4 | BG46: 3 | BH46: 2 | BI46: 4 | BJ46: 3 | BK46: 0 | BL46: 1 | BM46: 4 | BN46: 4 | BO46: 3 | BP46: 2 | BQ46: 4 | BR46: 3 | BS46: 0 | BT46: 1 | BU46: 0 | BV46: 1 | BW46: 2 | BX46: 0 | BY46: 7 | BZ46: 4 | CA46: 3 | CB46: 1 | CC46: 2 | CD46: 0 | CE46: 7 | CF46: 4 | CG46: 3 | CH46: 1 | CI46: 1 | CJ46: 6 | CK46: 3 | CL46: 2 | CM46: 2 | CN46: 5 | CO46: 2 | CP46: 1 | CQ46: 7 | CR46: 4 | CS46: 3 | CT46: 3 | CU46: 4 | CV46: 1
AH47: 13 | AI47: 1 | AJ47: 1 | AK47: 1 | AL47: 5 | AM47: 5 | AN47: 7 | AO47: 1 | AP47: 2 | AQ47: 6 | AR47: 2 | AS47: 0 | AT47: 0 | AU47: 2 | AV47: 6 | AW47: 6 | AX47: 8 | AY47: 2 | AZ47: 3 | BA47: 7 | BB47: 3 | BC47: 1 | BD47: 2 | BE47: 6 | BF47: 6 | BG47: 8 | BH47: 2 | BI47: 3 | BJ47: 7 | BK47: 3 | BL47: 1 | BM47: 4 | BN47: 4 | BO47: 6 | BP47: 0 | BQ47: 1 | BR47: 5 | BS47: 1 | BT47: 1 | BU47: 0 | BV47: 2 | BW47: 4 | BX47: 3 | BY47: 1 | BZ47: 3 | CA47: 5 | CB47: 2 | CC47: 4 | CD47: 3 | CE47: 1 | CF47: 3 | CG47: 5 | CH47: 6 | CI47: 5 | CJ47: 1 | CK47: 5 | CL47: 7 | CM47: 1 | CN47: 5 | CO47: 1 | CP47: 1 | CQ47: 4 | CR47: 0 | CS47: 2 | CT47: 4 | CU47: 6 | CV47: 2
AI49: =IFERROR(AVERAGE(AI36:AI47),"") -> 1.166666667 | AJ49: =IFERROR(AVERAGE(AJ36:AJ47),"") -> 2.666666667 | AK49: 2.5 | AL49: 2.833333333 | AM49: 2.416666667 | AN49: 3.5 | AO49: 2 | AP49: 2.666666667 | AQ49: 2.333333333 | AR49: 2 | AS49: 2.416666667 | AT49: 2 | AU49: 2.833333333 | AV49: 3.333333333 | AW49: 2.75 | AX49: 4.5 | AY49: 2.333333333 | AZ49: 3.5 | BA49: 2.833333333 | BB49: 2 | BC49: 2.416666667 | BD49: 2.333333333 | BE49: 4.5 | BF49: 4.083333333 | BG49: 4.166666667 | BH49: 2.166666667 | BI49: 3.666666667 | BJ49: 3.833333333 | BK49: 2.666666667 | BL49: 1.416666667 | BM49: 3 | BN49: 2.75 | BO49: 2.666666667 | BP49: 1.666666667 | BQ49: 3 | BR49: 3.333333333 | BS49: 2 | BT49: 1.583333333 | BU49: 1.25 | BV49: 3.333333333 | BW49: 3 | BX49: 1.833333333 | BY49: 2 | BZ49: 2.166666667 | CA49: 3.75 | CB49: 2.75 | CC49: 2.583333333 | CD49: 2.583333333 | CE49: 2.583333333 | CF49: 1.583333333 | CG49: 3.5 | CH49: 3.333333333 | CI49: 3.666666667 | CJ49: 3.5 | CK49: 3.666666667 | CL49: 3.75 | CM49: 2.5 | CN49: 3 | CO49: 2.166666667 | CP49: 1.416666667 | CQ49: 1.833333333 | CR49: 2.666666667 | CS49: 3.25 | CT49: 2.666666667 | CU49: 3.916666667 | CV49: =IFERROR(AVERAGE(CV36:CV47),"") -> 2.25
H51: Part C: Select Go
D52: Part A: Select Options | K52: Part D: Tick Solver Add-in | AI52: =+AH53 -> Coke | AJ52: =+AH54 -> Pepsi | AK52: =+AH55 -> Fanta | AL52: =+AH56 -> Sprite | AM52: =+AH57 -> Pepsi Max | AN52: =+AH58 -> Coke Zero | AO52: =+AH59 -> Water | AP52: =+AH60 -> Mt Dew | AQ52: =+AH61 -> Dr Pepper | AR52: =+AH62 -> Diet Coke | AS52: =+AH63 -> Pepsi Next | AT52: =+AH64 -> Lift | AU52: =+AH65 -> Sweet | AV52: =+AH66 -> For Kids | AW52: =+AH67 -> High caffeine | AX52: =+AH68 -> Modern | AY52: =+AH69 -> Low in sugar | AZ52: =+AH70 -> Trusted | BA52: =+AH71 -> Clear | BB52: =+AH72 -> Tangy | BC52: =+AH73 -> Adult | BD52: =+AH74 -> Bitter | BE52: =+AH75 -> Friendy | BF52: =+AH76 -> For diets
E53: Part B: Select Add-ins | AD53: 3 | AE53: 3 | AG53: 1 | AH53: =IF(D17="","",+D17) -> Coke | AI53: 0
AD54: =IF($AI54="",0,+$AI54) -> 1.166666667 | AE54: =IF($AI54="",0,0) -> 0 | AG54: =+AG53+1 -> 2 | AH54: Pepsi | AI54: =+AI49 -> 1.166666667 | AJ54: 0
AD55: =IF($AI55="",0,0) -> 0 | AE55: =IF($AI55="",0,+$AI55) -> 2.666666667 | AG55: =+AG54+1 -> 3 | AH55: Fanta | AI55: =+AJ49 -> 2.666666667 | AJ55: =+AT49 -> 2 | AK55: 0
AD56: =IF($AI56="",0,+$AI56) -> 2.5 | AE56: =IF($AI56="",0,0) -> 0 | AG56: 4 | AH56: Sprite | AI56: =+AK49 -> 2.5 | AJ56: =+AU49 -> 2.833333333 | AK56: =+BD49 -> 2.333333333 | AL56: 0
AD57: =IF($AI57="",0,0) -> 0 | AE57: =IF($AI57="",0,+$AI57) -> 2.833333333 | AG57: 5 | AH57: Pepsi Max | AI57: =+AL49 -> 2.833333333 | AJ57: =+AV49 -> 3.333333333 | AK57: =+BE49 -> 4.5 | AL57: =+BM49 -> 3 | AM57: 0
AD58: =IF($AI58="",0,+$AI58) -> 2.416666667 | AE58: =IF($AI58="",0,0) -> 0 | AG58: 6 | AH58: Coke Zero | AI58: =+AM49 -> 2.416666667 | AJ58: =+AW49 -> 2.75 | AK58: =+BF49 -> 4.083333333 | AL58: =+BN49 -> 2.75 | AM58: =+BU49 -> 1.25 | AN58: 0
D59: STEP SIX | E59: IMPORTANT: Save the spreadsheet and exit Excel, then reopen the spreadsheet | AD59: =IF($AI59="",0,0) -> 0 | AE59: =IF($AI59="",0,+$AI59) -> 3.5 | AG59: 7 | AH59: Water | AI59: =+AN49 -> 3.5 | AJ59: =+AX49 -> 4.5 | AK59: =+BG49 -> 4.166666667 | AL59: =+BO49 -> 2.666666667 | AM59: =+BV49 -> 3.333333333 | AN59: =+CB49 -> 2.75 | AO59: 0
E60: Note: You need to save, exit and reopen Excel in order for the Solver Add-in to be loaded into the spreadsheet | AD60: =IF($AI60="",0,+$AI60) -> 2 | AE60: =IF($AI60="",0,0) -> 0 | AG60: 8 | AH60: Mt Dew | AI60: =+AO49 -> 2 | AJ60: =+AY49 -> 2.333333333 | AK60: =+BH49 -> 2.166666667 | AL60: =+BP49 -> 1.666666667 | AM60: =+BW49 -> 3 | AN60: =+CC49 -> 2.583333333 | AO60: =+CH49 -> 3.333333333 | AP60: 0
E61: Solver should then appear under Data in the top menu, as shown below | AD61: =IF($AI61="",0,0) -> 0 | AE61: =IF($AI61="",0,+$AI61) -> 2.666666667 | AG61: 9 | AH61: Dr Pepper | AI61: =+AP49 -> 2.666666667 | AJ61: =+AZ49 -> 3.5 | AK61: =+BI49 -> 3.666666667 | AL61: =+BQ49 -> 3 | AM61: =+BX49 -> 1.833333333 | AN61: =+CD49 -> 2.583333333 | AO61: =+CI49 -> 3.666666667 | AP61: =+CM49 -> 2.5 | AQ61: 0
AD62: =IF($AI62="",0,+$AI62) -> 2.333333333 | AE62: =IF($AI62="",0,0) -> 0 | AG62: 10 | AH62: Diet Coke | AI62: =+AQ49 -> 2.333333333 | AJ62: =+BA49 -> 2.833333333 | AK62: =+BJ49 -> 3.833333333 | AL62: =+BR49 -> 3.333333333 | AM62: =+BY49 -> 2 | AN62: =+CE49 -> 2.583333333 | AO62: =+CJ49 -> 3.5 | AP62: =+CN49 -> 3 | AQ62: =+CQ49 -> 1.833333333 | AR62: 0
AD63: =IF($AI63="",0,0) -> 0 | AE63: =IF($AI63="",0,+$AI63) -> 2 | AG63: 11 | AH63: Pepsi Next | AI63: =+AR49 -> 2 | AJ63: =+BB49 -> 2 | AK63: =+BK49 -> 2.666666667 | AL63: =+BS49 -> 2 | AM63: =+BZ49 -> 2.166666667 | AN63: =+CF49 -> 1.583333333 | AO63: =+CK49 -> 3.666666667 | AP63: =+CO49 -> 2.166666667 | AQ63: =+CR49 -> 2.666666667 | AR63: =+CT49 -> 2.666666667 | AS63: 0
AD64: =IF($AI64="",0,+$AI64) -> 2.416666667 | AE64: =IF($AI64="",0,0) -> 0 | AG64: 12 | AH64: Lift | AI64: =+AS49 -> 2.416666667 | AJ64: =+BC49 -> 2.416666667 | AK64: =+BL49 -> 1.416666667 | AL64: =+BT49 -> 1.583333333 | AM64: =+CA49 -> 3.75 | AN64: =+CG49 -> 3.5 | AO64: =+CL49 -> 3.75 | AP64: =+CP49 -> 1.416666667 | AQ64: =+CS49 -> 3.25 | AR64: =+CU49 -> 3.916666667 | AS64: =+CV49 -> 2.25 | AT64: 0
AD65: =IF($AI65="",0,0) -> 0 | AE65: =IF($AI65="",0,+$AI65) -> 2.117835968 | AG65: 13 | AH65: =+IF(E16="","",E16) -> Sweet | AI65: =+AH253 -> 2.117835968 | AJ65: =+AI253 -> 0.5 | AK65: 1.039278656 | AL65: 3.196393281 | AM65: 3.735671937 | AN65: 2.657114625 | AO65: 4.274950593 | AP65: 1.039278656 | AQ65: 4.274950593 | AR65: 3.735671937 | AS65: 2.117835968 | AT65: 1.039278656 | AU65: 0
AD66: =IF($AI66="",0,+$AI66) -> 2.657114625 | AE66: =IF($AI66="",0,0) -> 0 | AG66: 14 | AH66: =+IF(F16="","",F16) -> For Kids | AI66: =+AH254 -> 2.657114625 | AJ66: 2.117835968 | AK66: 0.5 | AL66: 3.196393281 | AM66: 4.274950593 | AN66: 3.196393281 | AO66: 2.657114625 | AP66: 3.196393281 | AQ66: 4.814229249 | AR66: 4.274950593 | AS66: 2.117835968 | AT66: 2.117835968 | AU66: =+AI30 -> 1.5 | AV66: 0
AD67: =IF($AI67="",0,0) -> 0 | AE67: =IF($AI67="",0,+$AI67) -> 1.578557312 | AG67: 15 | AH67: =+IF(G16="","",G16) -> High caffeine | AI67: 1.578557312 | AJ67: 1.578557312 | AK67: 4.274950593 | AL67: 4.814229249 | AM67: 0.5 | AN67: 1.578557312 | AO67: 4.814229249 | AP67: 2.117835968 | AQ67: 2.657114625 | AR67: 1.578557312 | AS67: 1.039278656 | AT67: 4.274950593 | AU67: =+AJ30 -> 3.166666667 | AV67: =+AT30 -> 3.666666667 | AW67: 0
AD68: =IF($AI68="",0,+$AI68) -> 2.657114625 | AE68: =IF($AI68="",0,0) -> 0 | AG68: 16 | AH68: =+IF(H16="","",H16) -> Modern | AI68: 2.657114625 | AJ68: 1.578557312 | AK68: 3.735671937 | AL68: 2.117835968 | AM68: 2.117835968 | AN68: 1.039278656 | AO68: 4.274950593 | AP68: 3.735671937 | AQ68: 3.196393281 | AR68: 3.196393281 | AS68: 1.039278656 | AT68: 2.117835968 | AU68: =+AK30 -> 2.333333333 | AV68: =+AU30 -> 2.333333333 | AW68: =+BD30 -> 2 | AX68: 0
D69: STEP SEVEN | AD69: =IF($AI69="",0,0) -> 0 | AE69: =IF($AI69="",0,+$AI69) -> 3.735671937 | AG69: 17 | AH69: =+IF(I16="","",I16) -> Low in sugar | AI69: 3.735671937 | AJ69: 4.814229249 | AK69: 4.814229249 | AL69: 2.117835968 | AM69: 1.578557312 | AN69: 0.5 | AO69: 0.5 | AP69: 3.196393281 | AQ69: 3.735671937 | AR69: 4.274950593 | AS69: 2.117835968 | AT69: 3.735671937 | AU69: =+AL30 -> 3.833333333 | AV69: =+AV30 -> 3 | AW69: =+BE30 -> 3.333333333 | AX69: =+BM30 -> 2.333333333 | AY69: 0
AD70: =IF($AI70="",0,+$AI70) -> 0.5 | AE70: =IF($AI70="",0,0) -> 0 | AG70: 18 | AH70: =+IF(J16="","",J16) -> Trusted | AI70: 0.5 | AJ70: 1.578557312 | AK70: 2.657114625 | AL70: 2.657114625 | AM70: 3.735671937 | AN70: 2.657114625 | AO70: 0.5 | AP70: 2.657114625 | AQ70: 3.196393281 | AR70: 1.578557312 | AS70: 2.657114625 | AT70: 3.196393281 | AU70: =+AM30 -> 2.5 | AV70: =+AW30 -> 2.333333333 | AW70: =+BF30 -> 2.666666667 | AX70: =+BN30 -> 2.5 | AY70: =+BU30 -> 2.833333333 | AZ70: 0
AD71: =IF($AI71="",0,0) -> 0 | AE71: =IF($AI71="",0,+$AI71) -> 4.814229249 | AG71: 19 | AH71: =+IF(K16="","",K16) -> Clear | AI71: 4.814229249 | AJ71: 4.814229249 | AK71: 3.196393281 | AL71: 1.578557312 | AM71: 4.274950593 | AN71: 4.274950593 | AO71: 0.5 | AP71: 2.117835968 | AQ71: 3.735671937 | AR71: 3.735671937 | AS71: 3.735671937 | AT71: 2.117835968 | AU71: =+AN30 -> 3.25 | AV71: =+AX30 -> 2.583333333 | AW71: =+BG30 -> 4.583333333 | AX71: =+BO30 -> 3.25 | AY71: =+BV30 -> 2.25 | AZ71: =+CB30 -> 2.583333333 | BA71: 0
AD72: =IF($AI72="",0,+$AI72) -> 2.657114625 | AE72: =IF($AI72="",0,0) -> 0 | AG72: 20 | AH72: =+IF(L16="","",L16) -> Tangy | AI72: 2.657114625 | AJ72: 2.657114625 | AK72: 1.578557312 | AL72: 1.039278656 | AM72: 2.657114625 | AN72: 3.196393281 | AO72: 3.735671937 | AP72: 0.5 | AQ72: 2.117835968 | AR72: 2.657114625 | AS72: 2.117835968 | AT72: 0.5 | AU72: =+AO30 -> 1.833333333 | AV72: =+AY30 -> 2.333333333 | AW72: =+BH30 -> 3.333333333 | AX72: =+BP30 -> 2.333333333 | AY72: =+BW30 -> 3.666666667 | AZ72: =+CC30 -> 2.833333333 | BA72: =+CH30 -> 3.083333333 | BB72: 0
AD73: =IF($AI73="",0,0) -> 0 | AE73: =IF($AI73="",0,+$AI73) -> 1.578557312 | AG73: 21 | AH73: =+IF(M16="","",M16) -> Adult | AI73: 1.578557312 | AJ73: 2.117835968 | AK73: 4.274950593 | AL73: 2.657114625 | AM73: 2.117835968 | AN73: 2.117835968 | AO73: 2.657114625 | AP73: 2.117835968 | AQ73: 1.039278656 | AR73: 1.039278656 | AS73: 3.196393281 | AT73: 4.274950593 | AU73: =+AP30 -> 3.25 | AV73: =+AZ30 -> 3.083333333 | AW73: =+BI30 -> 1.75 | AX73: =+BQ30 -> 2.416666667 | AY73: =+BX30 -> 2.916666667 | AZ73: =+CD30 -> 1.916666667 | BA73: =+CI30 -> 3.5 | BB73: =+CM30 -> 2.75 | BC73: 0
E74: Note: It may take up to 15 seconds to calculate | AD74: =IF($AI74="",0,+$AI74) -> 4.274950593 | AE74: =IF($AI74="",0,0) -> 0 | AG74: 22 | AH74: =+IF(N16="","",N16) -> Bitter | AI74: 4.274950593 | AJ74: 4.814229249 | AK74: 4.814229249 | AL74: 4.274950593 | AM74: 1.578557312 | AN74: 2.657114625 | AO74: 3.196393281 | AP74: 3.735671937 | AQ74: 0.5 | AR74: 1.578557312 | AS74: 2.657114625 | AT74: 3.735671937 | AU74: =+AQ30 -> 4.083333333 | AV74: =+BA30 -> 3.583333333 | AW74: =+BJ30 -> 2.583333333 | AX74: =+BR30 -> 2.916666667 | AY74: =+BY30 -> 2.25 | AZ74: =+CE30 -> 3.083333333 | BA74: =+CJ30 -> 3.333333333 | BB74: =+CN30 -> 3.416666667 | BC74: =+CQ30 -> 2 | BD74: 0
AD75: =IF($AI75="",0,0) -> 0 | AE75: =IF($AI75="",0,+$AI75) -> 2.657114625 | AG75: 23 | AH75: =+IF(O16="","",O16) -> Friendy | AI75: 2.657114625 | AJ75: 2.117835968 | AK75: 2.117835968 | AL75: 2.117835968 | AM75: 4.274950593 | AN75: 4.274950593 | AO75: 3.735671937 | AP75: 3.196393281 | AQ75: 4.274950593 | AR75: 0.5 | AS75: 2.117835968 | AT75: 2.657114625 | AU75: =+AR30 -> 2.166666667 | AV75: =+BB30 -> 1.5 | AW75: =+BK30 -> 3.166666667 | AX75: =+BS30 -> 2.166666667 | AY75: =+BZ30 -> 3.333333333 | AZ75: =+CF30 -> 2 | BA75: =+CK30 -> 2.583333333 | BB75: =+CO30 -> 2.166666667 | BC75: =+CR30 -> 2.583333333 | BD75: =+CT30 -> 3.25 | BE75: 0
AD76: =IF($AI76="",0,+$AI76) -> 4.274950593 | AE76: =IF($AI76="",0,0) -> 0 | AG76: 24 | AH76: =+IF(P16="","",P16) -> For diets | AI76: 4.274950593 | AJ76: 4.814229249 | AK76: 4.814229249 | AL76: 3.735671937 | AM76: 1.578557312 | AN76: 1.578557312 | AO76: 0.5 | AP76: 3.735671937 | AQ76: 3.196393281 | AR76: 1.039278656 | AS76: 3.196393281 | AT76: 4.274950593 | AU76: =+AS30 -> 4.416666667 | AV76: =+BC30 -> 3.75 | AW76: =+BL30 -> 2.75 | AX76: =+BT30 -> 2.916666667 | AY76: =+CA30 -> 1.416666667 | AZ76: =+CG30 -> 2.583333333 | BA76: =+CL30 -> 2.666666667 | BB76: =+CP30 -> 4.083333333 | BC76: =+CS30 -> 2.166666667 | BD76: =+CU30 -> 1.333333333 | BE76: =+CV30 -> 3.416666667 | BF76: =+BE250 -> 0
AI77: =SUM(AI53:AI76) -> 60.00321146 | AJ77: =SUM(AJ53:AJ76) -> 62.00321146 | AK77: 66.65077404 | AL77: 53.50321146 | AM77: 49.75798748 | AN77: 45.3115942 | AO77: 49.2627635 | AP77: 40.42943017 | AQ77: 44.4888834 | AR77: 35.77231555 | AS77: 30.3604249 | AT77: 34.04249012 | AU77: 32.33333333 | AV77: 28.16666667 | AW77: 26.16666667 | AX77: 20.83333333 | AY77: 18.66666667 | AZ77: 15 | BA77: 15.16666667 | BB77: 12.41666667 | BC77: 6.75 | BD77: 4.583333333 | BE77: 3.416666667 | BF77: =SUM(BF53:BF76) -> 0
AK79: =+AF80 -> 1 | AL79: =+AF81 -> 1 | AM79: =+AF82 -> 1 | AN79: =+AF83 -> 1 | AO79: =+AF84 -> 1 | AP79: =+AF85 -> 1 | AQ79: =+AF86 -> 1 | AR79: =+AF87 -> 1 | AS79: =+AF88 -> 1 | AT79: =+AF89 -> 1 | AU79: =+AF90 -> 1 | AV79: =+AF91 -> 1 | AW79: =+AF92 -> 1 | AX79: =+AF93 -> 1 | AY79: =+AF94 -> 1 | AZ79: =+AF95 -> 1 | BA79: =+AF96 -> 1 | BB79: =+AF97 -> 1 | BC79: =+AF98 -> 1 | BD79: =+AF99 -> 1 | BE79: =+AF100 -> 1 | BF79: =+AF101 -> 1 | BG79: =+AF102 -> 1 | BH79: =+AF103 -> 1
Z80: =+IF($AF80=1,(AC80+$AD$107)*$AD$109,"") -> 3.940035671 | AA80: =+IF($AF80=1,(AD80+$AD$107)*$AD$109,"") -> 3.978419923 | AC80: =IF($AF80=1,AI80,"") -> 2.118871248 | AD80: =IF($AF80=1,AJ80,"") -> 2.149255628 | AF80: =IF(E17="",0,1) -> 1 | AH80: =+AH53 -> Coke | AI80: 2.118871248 | AJ80: 2.149255628
Z81: 3.02175419 | AA81: 2.635828857 | AC81: 1.391973842 | AD81: 1.086481323 | AF81: 1 | AH81: =+AH54 -> Pepsi | AI81: 1.391973842 | AJ81: 1.086481323 | AK81: =IFERROR(IF(OR($AF81=0,AK$79=0),"",SQRT(($AI$80-$AI81)^2+($AJ$80-$AJ81)^2)),"") -> 1.287582643
Z82: 1.58796308 | AA82: 2.131476131 | AC82: 0.2570069936 | AD82: 0.687243512 | AF82: 1 | AH82: Fanta | AI82: 0.2570069936 | AJ82: 0.687243512 | AK82: 2.367280704 | AL82: =IFERROR(IF(OR($AF82=0,AL$79=0),"",SQRT(($AI$81-$AI82)^2+($AJ$81-$AJ82)^2)),"") -> 1.203137805 | AQ82: `
Z83: 4.984147853 | AA83: 2.289787847 | AC83: 2.94537429 | AD83: 0.8125606154 | AF83: 1 | AH83: Sprite | AI83: 2.94537429 | AJ83: 0.8125606154 | AK83: 1.57157909 | AL83: 1.577366636 | AM83: =IFERROR(IF(OR($AF83=0,AM$79=0),"",SQRT(($AI$82-$AI83)^2+($AJ$82-$AJ83)^2)),"") -> 2.691286513
Z84: 7.195888076 | AA84: 5.536758161 | AC84: 4.696153614 | AD84: 3.382812055 | AF84: 1 | AH84: Pepsi Max | AI84: 4.696153614 | AJ84: 3.382812055 | AK84: 2.85727945 | AL84: 4.023771713 | AM84: 5.193468253 | AN84: =IFERROR(IF(OR($AF84=0,AN$79=0),"",SQRT(($AI$83-$AI84)^2+($AJ$83-$AJ84)^2)),"") -> 3.109890787
Z85: 6.515437224 | AA85: 5.085711661 | AC85: 4.157519253 | AD85: 3.025770628 | AF85: 1 | AH85: Coke Zero | AI85: 4.157519253 | AJ85: 3.025770628 | AK85: 2.219090857 | AL85: 3.377733623 | AM85: 4.5478242 | AN85: 2.523409196 | AO85: =IFERROR(IF(OR($AF85=0,AO$79=0),"",SQRT(($AI$84-$AI85)^2+($AJ$84-$AJ85)^2)),"") -> 0.6462240761
Z86: 2.470533471 | AA86: 7.515644286 | AC86: 0.9556360539 | AD86: 4.94926768 | AF86: 1 | AH86: Water | AI86: 0.9556360539 | AJ86: 4.94926768 | AK86: 3.03202632 | AL86: 3.887352455 | AM86: 4.318904094 | AN86: 4.590359854 | AO86: 4.055274941 | AP86: =IFERROR(IF(OR($AF86=0,AP$79=0),"",SQRT(($AI$85-$AI86)^2+($AJ$85-$AJ86)^2)),"") -> 3.735223812
M87: STEP EIGHT | O87: Copy Your Map to Word or PP | Z87: 4.210101043 | AA87: 2.759782688 | AC87: 2.332650817 | AD87: 1.184601256 | AF87: 1 | AH87: Mt Dew | AI87: 2.332650817 | AJ87: 1.184601256 | AK87: 0.988058582 | AL87: 0.9457804668 | AM87: 2.134399683 | AN87: 0.716829333 | AO87: 3.227735459 | AP87: 2.59230582 | AQ87: =IFERROR(IF(OR($AF87=0,AQ$79=0),"",SQRT(($AI$86-$AI87)^2+($AJ$86-$AJ87)^2)),"") -> 4.00860112
M88: To maintain the formatting of the map | Z88: 5.926742464 | AA88: 7.005860359 | AC88: 3.691517593 | AD88: 4.545730615 | AF88: 1 | AH88: Dr Pepper | AI88: 3.691517593 | AJ88: 4.545730615 | AK88: 2.866410453 | AL88: 4.153830416 | AM88: 5.16563508 | AN88: 3.807005132 | AO88: 1.536773604 | AP88: 1.589791153 | AQ88: 2.765481867 | AR88: =IFERROR(IF(OR($AF88=0,AR$79=0),"",SQRT(($AI$87-$AI88)^2+($AJ$87-$AJ88)^2)),"") -> 3.62542542
M89: when you copy it: | Z89: 4.23835508 | AA89: 6.651683889 | AC89: 2.355016275 | AD89: 4.265370004 | AF89: 1 | AH89: Diet Coke | AI89: 2.355016275 | AJ89: 4.265370004 | AK89: 2.129249756 | AL89: 3.321563483 | AM89: 4.147846687 | AN89: 3.502915251 | AO89: 2.501965742 | AP89: 2.18760682 | AQ89: 1.557556109 | AR89: 3.08084993 | AS89: =IFERROR(IF(OR($AF89=0,AS$79=0),"",SQRT(($AI$88-$AI89)^2+($AJ$88-$AJ89)^2)),"") -> 1.365590658
M90: 1 | N90: Click on the edge of the map | Z90: 5.652634513 | AA90: 3.611142182 | AC90: 3.474537982 | AD90: 1.858524254 | AF90: 1 | AH90: Pepsi Next | AI90: 3.474537982 | AJ90: 1.858524254 | AK90: 1.386490904 | AL90: 2.221063638 | AM90: 3.424091739 | AN90: 1.172200557 | AO90: 1.953406782 | AP90: 1.352378465 | AQ90: 3.98717467 | AR90: 1.325925528 | AS90: 2.695952184 | AT90: =IFERROR(IF(OR($AF90=0,AT$79=0),"",SQRT(($AI$89-$AI90)^2+($AJ$89-$AJ90)^2)),"") -> 2.654474584
N91: to highlight it | Z91: 3.531787371 | AA91: 1.606582019 | AC91: 1.795708214 | AD91: 0.2717454574 | AF91: 1 | AH91: Lift | AI91: 1.795708214 | AJ91: 0.2717454574 | AK91: 1.905119101 | AL91: 0.9092832191 | AM91: 1.593813062 | AN91: 1.270516872 | AO91: 4.253389108 | AP91: 3.628058162 | AQ91: 4.752361032 | AR91: 1.059062354 | AS91: 4.675579357 | AT91: 4.032599971 | AU91: =IFERROR(IF(OR($AF91=0,AU$79=0),"",SQRT(($AI$90-$AI91)^2+($AJ$90-$AJ91)^2)),"") -> 2.310051155
Z92: 2.722317618 | AA92: 2.199988615 | AC92: 1.154944487 | AD92: 0.7414769332 | AF92: =IF(E17="",0,1) -> 1 | AH92: Sweet | AI92: 1.154944487 | AJ92: 0.7414769332 | AK92: 1.706164018 | AL92: 0.4185820636 | AM92: 0.8995737916 | AN92: 1.79184033 | AO92: 4.417783755 | AP92: 3.772724865 | AQ92: 4.212508376 | AR92: 1.258312904 | AS92: 4.572368007 | AT92: 3.72263276 | AU92: 2.574550193 | AV92: =IFERROR(IF(OR($AF92=0,AV$79=0),"",SQRT(($AI$91-$AI92)^2+($AJ$91-$AJ92)^2)),"") -> 0.7944972073
M93: 2 | N93: Select 'copy' from the above menu | Z93: 1.488086128 | AA93: 3.420611416 | AC93: 0.1779459441 | AD93: 1.707703049 | AF93: =IF(F17="",0,1) -> 1 | AH93: For Kids | AI93: 0.1779459441 | AJ93: 1.707703049 | AK93: 1.990517449 | AL93: 1.363737574 | AM93: 1.023517619 | AN93: 2.908597535 | AO93: 4.818733312 | AP93: 4.192171974 | AQ93: 3.333548135 | AR93: 2.217293073 | AS93: 4.516590107 | AT93: 3.358763981 | AU93: 3.300040318 | AV93: 2.163129438 | AW93: =IFERROR(IF(OR($AF93=0,AW$79=0),"",SQRT(($AI$92-$AI93)^2+($AJ$92-$AJ93)^2)),"") -> 1.374088447
Z94: 7.0617827 | AA94: 4.494668314 | AC94: 4.589997874 | AD94: 2.557909863 | AF94: =IF(G17="",0,1) -> 1 | AH94: High caffeine | AI94: 4.589997874 | AJ94: 2.557909863 | AK94: 2.504688621 | AL94: 3.520292553 | AM94: 4.719555336 | AN94: 2.398130674 | AO94: 0.8317046761 | AP94: 0.6371275016 | AQ94: 4.350537674 | AR94: 2.642270286 | AS94: 2.181444053 | AT94: 2.812572289 | AU94: 1.316583078 | AV94: 3.610346576 | AW94: 3.885745792 | AX94: =IFERROR(IF(OR($AF94=0,AX$79=0),"",SQRT(($AI$93-$AI94)^2+($AJ$93-$AJ94)^2)),"") -> 4.493223104
M95: 3 | N95: Go to your Word or P/Point document | Z95: 6.201653679 | AA95: 3.45009818 | AC95: 3.909133055 | AD95: 1.731044314 | AF95: =IF(H17="",0,1) -> 1 | AH95: Modern | AI95: 3.909133055 | AJ95: 1.731044314 | AK95: 1.83846078 | AL95: 2.598374867 | AM95: 3.798360815 | AN95: 1.331331387 | AO95: 1.829682495 | AP95: 1.318336804 | AQ95: 4.368078086 | AR95: 1.668501203 | AS95: 2.823086158 | AT95: 2.972891802 | AU95: 0.4529061848 | AV95: 2.568290816 | AW95: 2.92656766 | AX95: 3.731260118 | AY95: =IFERROR(IF(OR($AF95=0,AY$79=0),"",SQRT(($AI$94-$AI95)^2+($AJ$94-$AJ95)^2)),"") -> 1.071113223
Z96: 6.737439217 | AA96: 6.296243829 | AC96: 4.333252593 | AD96: 3.984009154 | AF96: =IF(I17="",0,1) -> 1 | AH96: Low in sugar | AI96: 4.333252593 | AJ96: 3.984009154 | AK96: 2.875726907 | AL96: 4.128775633 | AM96: 5.242560623 | AN96: 3.461833621 | AO96: 0.7022357883 | AP96: 0.9742193182 | AQ96: 3.512836106 | AR96: 3.44079817 | AS96: 0.8528509896 | AT96: 1.998144855 | AU96: 2.292395438 | AV96: 4.496669127 | AW96: 4.540446853 | AX96: 4.737947112 | AY96: 1.449026338 | AZ96: =IFERROR(IF(OR($AF96=0,AZ$79=0),"",SQRT(($AI$95-$AI96)^2+($AJ$95-$AJ96)^2)),"") -> 2.292537448
M97: 4 | N97: Select 'paste', then 'paste special' | Z97: 2.911187373 | AA97: 5.469494886 | AC97: 1.304450862 | AD97: 3.329567488 | AF97: =IF(J17="",0,1) -> 1 | AH97: Trusted | AI97: 1.304450862 | AJ97: 3.329567488 | AK97: 1.434021147 | AL97: 2.244793045 | AM97: 2.842360753 | AN97: 3.00465527 | AO97: 3.392120656 | AP97: 2.869197061 | AQ97: 1.656834477 | AR97: 2.378670907 | AS97: 2.679018539 | AT97: 1.406916499 | AU97: 2.621687683 | AV97: 3.097032347 | AW97: 2.59240523 | AX97: 1.97470443 | AY97: 3.374948098 | AZ97: 3.056083386 | BA97: =IFERROR(IF(OR($AF97=0,BA$79=0),"",SQRT(($AI$96-$AI97)^2+($AJ$96-$AJ97)^2)),"") -> 3.098698731
N98: and choose 'picture'. | Z98: 1.263288978 | AA98: 6.428883806 | AC98: 0 | AD98: 4.089004907 | AF98: =IF(K17="",0,1) -> 1 | AH98: Clear | AI98: 0 | AJ98: 4.089004907 | AK98: 2.872671688 | AL98: 3.309492265 | AM98: 3.411456167 | AN98: 4.405714119 | AO98: 4.748954318 | AP98: 4.291320714 | AQ98: 1.285804148 | AR98: 3.725160452 | AS98: 3.719664032 | AT98: 2.361610955 | AU98: 4.128856758 | AV98: 4.218535017 | AW98: 3.541163693 | AX98: 2.387941226 | AY98: 4.838629198 | AZ98: 4.565227201 | BA98: 4.334524443 | BB98: =IFERROR(IF(OR($AF98=0,BB$79=0),"",SQRT(($AI$97-$AI98)^2+($AJ$97-$AJ98)^2)),"") -> 1.509416193
Z99: 4.295729523 | AA99: 2.233731743 | AC99: 2.400432996 | AD99: 0.7681874715 | AF99: =IF(L17="",0,1) -> 1 | AH99: Tangy | AI99: 2.400432996 | AJ99: 0.7681874715 | AK99: 1.409477305 | AL99: 1.057497442 | AM99: 2.144953835 | AN99: 0.5467449033 | AO99: 3.479453243 | AP99: 2.860775039 | AQ99: 4.423671542 | AR99: 0.4218943755 | AS99: 3.992083621 | AT99: 3.497477426 | AU99: 1.530534488 | AV99: 0.7823980675 | AW99: 1.245774891 | AX99: 2.412910735 | AY99: 2.827949892 | AZ99: 1.789767909 | BA99: 3.751972906 | BB99: 2.786008691 | BC99: =IFERROR(IF(OR($AF99=0,BC$79=0),"",SQRT(($AI$98-$AI99)^2+($AJ$98-$AJ99)^2)),"") -> 4.097548902
Z100: 4.745463065 | AA100: 6.062505563 | AC100: 2.756435106 | AD100: 3.79898556 | AF100: =IF(M17="",0,1) -> 1 | AH100: Adult | AI100: 2.756435106 | AJ100: 3.79898556 | AK100: 1.768642565 | AL100: 3.036352051 | AM100: 3.991250364 | AN100: 2.99239569 | AO100: 1.98386196 | AP100: 1.600280637 | AQ100: 2.136826193 | AR100: 2.648508715 | AS100: 1.19666513 | AT100: 0.6153466723 | AU100: 2.069072696 | AV100: 3.655737806 | AW100: 3.451540411 | AX100: 3.319950135 | AY100: 2.214096048 | AZ100: 2.367507879 | BA100: 1.587635701 | BB100: 1.52597889 | BC100: =IFERROR(IF(OR($AF100=0,BC$79=0),"",SQRT(($AI$98-$AI100)^2+($AJ$98-$AJ100)^2)),"") -> 2.771650359 | BD100: =IFERROR(IF(OR($AF100=0,BD$79=0),"",SQRT(($AI$99-$AI100)^2+($AJ$99-$AJ100)^2)),"") -> 3.051634735
Z101: 5.828950735 | AA101: 7.716627854 | AC101: 3.614107174 | AD101: 5.108363162 | AF101: =IF(N17="",0,1) -> 1 | AH101: Bitter | AI101: 3.614107174 | AJ101: 5.108363162 | AK101: 3.315425745 | AL101: 4.594933087 | AM101: 5.551253965 | AN101: 4.347542201 | AO101: 2.036750137 | AP101: 2.152321619 | AQ101: 2.663227378 | AR101: 4.12771582 | AS101: 0.56793288 | AT101: 1.515238383 | AU101: 3.252834531 | AV101: 5.167150627 | AW101: 5.011703947 | AX101: 4.834427908 | AY101: 2.730782798 | AZ101: 3.390180359 | BA101: 1.334669274 | BB101: 2.915240356 | BC101: =IFERROR(IF(OR($AF101=0,BC$79=0),"",SQRT(($AI$98-$AI101)^2+($AJ$98-$AJ101)^2)),"") -> 3.755111439 | BD101: =IFERROR(IF(OR($AF101=0,BD$79=0),"",SQRT(($AI$99-$AI101)^2+($AJ$99-$AJ101)^2)),"") -> 4.506676163 | BE101: =IFERROR(IF(OR($AF101=0,BE$79=0),"",SQRT(($AI$100-$AI101)^2+($AJ$100-$AJ101)^2)),"") -> 1.56527029
Z102: 1.910253223 | AA102: 4.43277447 | AC102: 0.5121268823 | AD102: 2.508915655 | AF102: =IF(O17="",0,1) -> 1 | AH102: Friendy | AI102: 0.5121268823 | AJ102: 2.508915655 | AK102: 1.646506238 | AL102: 1.672557952 | AM102: 1.839449796 | AN102: 2.966195099 | AO102: 4.27431569 | AP102: 3.681850703 | AQ102: 2.480326268 | AR102: 2.251247659 | AS102: 3.775862878 | AT102: 2.545854119 | AU102: 3.032966947 | AV102: 2.579246309 | AW102: 1.880705747 | AX102: 0.8681120545 | AY102: 4.078165305 | AZ102: 3.484929663 | BA102: 4.095961735 | BB102: 1.140722017 | BC102: =IFERROR(IF(OR($AF102=0,BC$79=0),"",SQRT(($AI$98-$AI102)^2+($AJ$98-$AJ102)^2)),"") -> 1.661010532 | BD102: =IFERROR(IF(OR($AF102=0,BD$79=0),"",SQRT(($AI$99-$AI102)^2+($AJ$99-$AJ102)^2)),"") -> 2.568235695 | BE102: =IFERROR(IF(OR($AF102=0,BE$79=0),"",SQRT(($AI$100-$AI102)^2+($AJ$100-$AJ102)^2)),"") -> 2.588667565 | BF102: =IFERROR(IF(OR($AF102=0,BF$79=0),"",SQRT(($AI$101-$AI102)^2+($AJ$101-$AJ102)^2)),"") -> 4.047148264
Z103: 4.492762985 | AA103: 8 | AC103: 2.556401635 | AD103: 5.332676166 | AF103: =IF(P17="",0,1) -> 1 | AH103: For diets | AI103: 2.556401635 | AJ103: 5.332676166 | AK103: 3.213347034 | AL103: 4.402960678 | AM103: 5.183363798 | AN103: 4.536820948 | AO103: 2.894910808 | AP103: 2.8080938 | AQ103: 1.646041467 | AR103: 4.154105185 | AS103: 1.381221032 | AT103: 1.086139267 | AU103: 3.593425366 | AV103: 5.117780194 | AW103: 4.800332544 | AX103: 4.335606252 | AY103: 3.440180475 | AZ103: 3.847289213 | BA103: 2.23071783 | BB103: 2.362165345 | BC103: =IFERROR(IF(OR($AF103=0,BC$79=0),"",SQRT(($AI$98-$AI103)^2+($AJ$98-$AJ103)^2)),"") -> 2.842869592 | BD103: =IFERROR(IF(OR($AF103=0,BD$79=0),"",SQRT(($AI$99-$AI103)^2+($AJ$99-$AJ103)^2)),"") -> 4.567152642 | BE103: =IFERROR(IF(OR($AF103=0,BE$79=0),"",SQRT(($AI$100-$AI103)^2+($AJ$100-$AJ103)^2)),"") -> 1.546680401 | BF103: =IFERROR(IF(OR($AF103=0,BF$79=0),"",SQRT(($AI$101-$AI103)^2+($AJ$101-$AJ103)^2)),"") -> 1.081229546 | BG103: =IFERROR(IF(OR($AF103=0,BG$79=0),"",SQRT(($AI$102-$AI103)^2+($AJ$102-$AJ103)^2)),"") -> 3.486069806
Z104: Min | AA104: =MIN(Z80:AA102) -> 1.263288978 | AC104: Min | AD104: =MIN(AC80:AD103) -> 0 | AK104: =IF(AK79=1,SUM(AK80:AK103),"") -> 49.18581736 | AL104: =IF(AL79=1,SUM(AL80:AL103),"") -> 57.96923266 | AM104: 73.86492617 | AN104: 55.38492876 | AO104: 53.58527655 | AP104: 46.24378427 | AQ104: 53.14141465 | AR104: 40.02574198 | AS104: 40.99590963 | AT104: 34.58066356 | AU104: 32.47590484 | AV104: 38.25081353 | AW104: 35.25047521 | AX104: 33.09608308 | AY104: 26.02489138 | AZ104: 24.79352306 | BA104: 20.43418062 | BB104: 12.23953149 | BC104: 15.12819082 | BD104: 14.69369924 | BE104: 5.700618256 | BF104: 5.12837781 | BG104: 3.486069806
Z105: Max | AA105: =MAX(Z80:AA103) -> 8 | AC105: Max | AD105: =MAX(AC80:AD103) -> 5.332676166
AA106: =+AA105-AA104 -> 6.736711022 | AD106: =+AD105-AD104 -> 5.332676166
AC107: Down | AD107: =1-AD104 -> 1
AC108: Top | AD108: =+AD107+AD105 -> 6.332676166
AC109: To 9 | AD109: =8/AD108 -> 1.263288978
AH138: =+AH80 -> Coke | AK138: =IFERROR(AK80^2,"") -> 0 | AL138: 0 | AM138: 0 | AN138: 0 | AO138: 0 | AP138: 0 | AQ138: 0 | AR138: 0 | AS138: 0 | AT138: 0 | AU138: 0 | AV138: 0 | AW138: 0 | AX138: 0 | AY138: 0 | AZ138: 0 | BA138: 0 | BB138: 0 | BC138: 0 | BD138: 0 | BE138: 0 | BF138: 0 | BG138: 0 | BH138: 0
AH139: Pepsi | AK139: =IFERROR(AK81^2,"") -> 1.657869063 | AL139: =IFERROR(AL81^2,"") -> 0 | AM139: 0 | AN139: 0 | AO139: 0 | AP139: 0 | AQ139: 0 | AR139: 0 | AS139: 0 | AT139: 0 | AU139: 0 | AV139: 0 | AW139: 0 | AX139: 0 | AY139: 0 | AZ139: 0 | BA139: 0 | BB139: 0 | BC139: 0 | BD139: 0 | BE139: 0 | BF139: 0 | BG139: 0 | BH139: 0
AH140: Fanta | AK140: =IFERROR(AK82^2,"") -> 5.604017931 | AL140: 1.447540578 | AM140: 0 | AN140: 0 | AO140: 0 | AP140: 0 | AR140: 0 | AS140: 0 | AT140: 0 | AU140: 0 | AV140: 0 | AW140: 0 | AX140: 0 | AY140: 0 | AZ140: 0 | BA140: 0 | BB140: 0 | BC140: 0 | BD140: 0 | BE140: 0 | BF140: 0 | BG140: 0 | BH140: 0
AH141: Sprite | AK141: =IFERROR(AK83^2,"") -> 2.469860836 | AL141: 2.488085503 | AM141: 7.243023095 | AN141: 0 | AO141: 0 | AP141: 0 | AQ141: 0 | AR141: 0 | AS141: 0 | AT141: 0 | AU141: 0 | AV141: 0 | AW141: 0 | AX141: 0 | AY141: 0 | AZ141: 0 | BA141: 0 | BB141: 0 | BC141: 0 | BD141: 0 | BE141: 0 | BF141: 0 | BG141: 0 | BH141: 0
AH142: Pepsi Max | AK142: =IFERROR(AK84^2,"") -> 8.164045855 | AL142: 16.1907388 | AM142: 26.97211249 | AN142: 9.671420709 | AO142: 0 | AP142: 0 | AQ142: 0 | AR142: 0 | AS142: 0 | AT142: 0 | AU142: 0 | AV142: 0 | AW142: 0 | AX142: 0 | AY142: 0 | AZ142: 0 | BA142: 0 | BB142: 0 | BC142: 0 | BD142: 0 | BE142: 0 | BF142: 0 | BG142: 0 | BH142: 0
AH143: Coke Zero | AK143: =IFERROR(AK85^2,"") -> 4.924364231 | AL143: 11.40908443 | AM143: 20.68270496 | AN143: 6.367593971 | AO143: 0.4176055565 | AP143: 0 | AQ143: 0 | AR143: 0 | AS143: 0 | AT143: 0 | AU143: 0 | AV143: 0 | AW143: 0 | AX143: 0 | AY143: 0 | AZ143: 0 | BA143: 0 | BB143: 0 | BC143: 0 | BD143: 0 | BE143: 0 | BF143: 0 | BG143: 0 | BH143: 0
AH144: Water | AK144: =IFERROR(AK86^2,"") -> 9.193183606 | AL144: 15.11150911 | AM144: 18.65293257 | AN144: 21.07140359 | AO144: 16.44525484 | AP144: 13.95189693 | AQ144: 0 | AR144: 0 | AS144: 0 | AT144: 0 | AU144: 0 | AV144: 0 | AW144: 0 | AX144: 0 | AY144: 0 | AZ144: 0 | BA144: 0 | BB144: 0 | BC144: 0 | BD144: 0 | BE144: 0 | BF144: 0 | BG144: 0 | BH144: 0
AH145: Mt Dew | AK145: =IFERROR(AK87^2,"") -> 0.9762597615 | AL145: 0.8945006913 | AM145: 4.555662007 | AN145: 0.5138442927 | AO145: 10.41827619 | AP145: 6.720049463 | AQ145: 16.06888294 | AR145: 0 | AS145: 0 | AT145: 0 | AU145: 0 | AV145: 0 | AW145: 0 | AX145: 0 | AY145: 0 | AZ145: 0 | BA145: 0 | BB145: 0 | BC145: 0 | BD145: 0 | BE145: 0 | BF145: 0 | BG145: 0 | BH145: 0
AH146: Dr Pepper | AK146: =IFERROR(AK88^2,"") -> 8.216308886 | AL146: 17.25430712 | AM146: 26.68378578 | AN146: 14.49328807 | AO146: 2.361673111 | AP146: 2.527435909 | AQ146: 7.647889958 | AR146: 13.14370948 | AS146: 0 | AT146: 0 | AU146: 0 | AV146: 0 | AW146: 0 | AX146: 0 | AY146: 0 | AZ146: 0 | BA146: 0 | BB146: 0 | BC146: 0 | BD146: 0 | BE146: 0 | BF146: 0 | BG146: 0 | BH146: 0
AH147: Diet Coke | AK147: =IFERROR(AK89^2,"") -> 4.533704523 | AL147: 11.03278397 | AM147: 17.20463214 | AN147: 12.27041526 | AO147: 6.259832575 | AP147: 4.785623599 | AQ147: 2.425981034 | AR147: 9.491636289 | AS147: 1.864837845 | AT147: 0 | AU147: 0 | AV147: 0 | AW147: 0 | AX147: 0 | AY147: 0 | AZ147: 0 | BA147: 0 | BB147: 0 | BC147: 0 | BD147: 0 | BE147: 0 | BF147: 0 | BG147: 0 | BH147: 0
AH148: Pepsi Next | AK148: =IFERROR(AK90^2,"") -> 1.922357026 | AL148: 4.933123684 | AM148: 11.72440424 | AN148: 1.374054146 | AO148: 3.815798055 | AP148: 1.828927514 | AQ148: 15.89756185 | AR148: 1.758078505 | AS148: 7.268158177 | AT148: 7.046235318 | AU148: 0 | AV148: 0 | AW148: 0 | AX148: 0 | AY148: 0 | AZ148: 0 | BA148: 0 | BB148: 0 | BC148: 0 | BD148: 0 | BE148: 0 | BF148: 0 | BG148: 0 | BH148: 0
AH149: Lift | AK149: =IFERROR(AK91^2,"") -> 3.629478789 | AL149: 0.8267959725 | AM149: 2.540240078 | AN149: 1.614213122 | AO149: 18.0913189 | AP149: 13.16280602 | AQ149: 22.58493538 | AR149: 1.121613069 | AS149: 21.86104233 | AT149: 16.26186253 | AU149: 5.336336341 | AV149: 0 | AW149: 0 | AX149: 0 | AY149: 0 | AZ149: 0 | BA149: 0 | BB149: 0 | BC149: 0 | BD149: 0 | BE149: 0 | BF149: 0 | BG149: 0 | BH149: 0
AH150: Sweet | AK150: =IFERROR(AK92^2,"") -> 2.910995655 | AL150: 0.175210944 | AM150: 0.8092330065 | AN150: 3.210691767 | AO150: 19.51681331 | AP150: 14.23345291 | AQ150: 17.74522682 | AR150: 1.583351364 | AS150: 20.90654919 | AT150: 13.85799467 | AU150: 6.628308698 | AV150: 0.6312258123 | AW150: 0 | AX150: 0 | AY150: 0 | AZ150: 0 | BA150: 0 | BB150: 0 | BC150: 0 | BD150: 0 | BE150: 0 | BF150: 0 | BG150: 0 | BH150: 0
AH151: For Kids | AK151: =IFERROR(AK93^2,"") -> 3.962159716 | AL151: 1.859780171 | AM151: 1.047588316 | AN151: 8.459939623 | AO151: 23.22019074 | AP151: 17.57430586 | AQ151: 11.11254317 | AR151: 4.916388573 | AS151: 20.3995862 | AT151: 11.28129548 | AU151: 10.8902661 | AV151: 4.679128965 | AW151: 1.88811906 | AX151: 0 | AY151: 0 | AZ151: 0 | BA151: 0 | BB151: 0 | BC151: 0 | BD151: 0 | BE151: 0 | BF151: 0 | BG151: 0 | BH151: 0
AH152: High caffeine | AK152: =IFERROR(AK94^2,"") -> 6.273465086 | AL152: 12.39245966 | AM152: 22.27420257 | AN152: 5.751030731 | AO152: 0.6917326682 | AP152: 0.4059314532 | AQ152: 18.92717805 | AR152: 6.981592266 | AS152: 4.758698157 | AT152: 7.910562882 | AU152: 1.733391001 | AV152: 13.0346024 | AW152: 15.09902036 | AX152: 20.18905386 | AY152: 0 | AZ152: 0 | BA152: 0 | BB152: 0 | BC152: 0 | BD152: 0 | BE152: 0 | BF152: 0 | BG152: 0 | BH152: 0
AH153: Modern | AK153: =IFERROR(AK95^2,"") -> 3.379938041 | AL153: 6.751551952 | AM153: 14.42754488 | AN153: 1.772443263 | AO153: 3.347738031 | AP153: 1.73801193 | AQ153: 19.08010617 | AR153: 2.783896263 | AS153: 7.969815458 | AT153: 8.838085666 | AU153: 0.2051240122 | AV153: 6.596117715 | AW153: 8.564798269 | AX153: 13.92230207 | AY153: 1.147283537 | AZ153: 0 | BA153: 0 | BB153: 0 | BC153: 0 | BD153: 0 | BE153: 0 | BF153: 0 | BG153: 0 | BH153: 0
AH154: Low in sugar | AK154: =IFERROR(AK96^2,"") -> 8.269805243 | AL154: 17.04678822 | AM154: 27.48444189 | AN154: 11.98429202 | AO154: 0.4931351023 | AP154: 0.94910328 | AQ154: 12.34001751 | AR154: 11.83909205 | AS154: 0.7273548105 | AT154: 3.99258286 | AU154: 5.255076845 | AV154: 20.22003323 | AW154: 20.61565762 | AX154: 22.44814283 | AY154: 2.099677327 | AZ154: 5.255727951 | BA154: 0 | BB154: 0 | BC154: 0 | BD154: 0 | BE154: 0 | BF154: 0 | BG154: 0 | BH154: 0
AH155: Trusted | AK155: =IFERROR(AK97^2,"") -> 2.056416651 | AL155: 5.039095817 | AM155: 8.07901465 | AN155: 9.027953292 | AO155: 11.50648255 | AP155: 8.232291777 | AQ155: 2.745100483 | AR155: 5.658075282 | AS155: 7.17714033 | AT155: 1.979414036 | AU155: 6.873246307 | AV155: 9.591609355 | AW155: 6.720564875 | AX155: 3.899457588 | AY155: 11.39027466 | AZ155: 9.339645664 | BA155: 9.601933825 | BB155: 0 | BC155: 0 | BD155: 0 | BE155: 0 | BF155: 0 | BG155: 0 | BH155: 0
AH156: Clear | AK156: =IFERROR(AK98^2,"") -> 8.252242628 | AL156: 10.95273905 | AM156: 11.63803318 | AN156: 19.4103169 | AO156: 22.55256711 | AP156: 18.41543347 | AQ156: 1.653292307 | AR156: 13.8768204 | AS156: 13.83590051 | AT156: 5.577206302 | AU156: 17.04745813 | AV156: 17.79603769 | AW156: 12.5398403 | AX156: 5.702263297 | AY156: 23.41233252 | AZ156: 20.8412994 | BA156: 18.78810215 | BB156: 2.278337243 | BC156: 0 | BD156: 0 | BE156: 0 | BF156: 0 | BG156: 0 | BH156: 0
AH157: Tangy | AK157: =IFERROR(AK99^2,"") -> 1.986626272 | AL157: 1.11830084 | AM157: 4.600826953 | AN157: 0.2989299893 | AO157: 12.10659487 | AP157: 8.184033821 | AQ157: 19.56886991 | AR157: 0.1779948641 | AS157: 15.93673163 | AT157: 12.23234834 | AU157: 2.34253582 | AV157: 0.612146736 | AW157: 1.551955078 | AX157: 5.822138216 | AY157: 7.997300594 | AZ157: 3.203269168 | BA157: 14.07730069 | BB157: 7.761844427 | BC157: 16.78990701 | BD157: 0 | BE157: 0 | BF157: 0 | BG157: 0 | BH157: 0
AH158: Adult | AK158: =IFERROR(AK100^2,"") -> 3.128096521 | AL158: 9.21943378 | AM158: 15.93007946 | AN158: 8.954431967 | AO158: 3.935708278 | AP158: 2.560898118 | AQ158: 4.56602618 | AR158: 7.014598413 | AS158: 1.432007433 | AT158: 0.3786515271 | AU158: 4.281061823 | AV158: 13.36441891 | AW158: 11.91313121 | AX158: 11.0220689 | AY158: 4.902221312 | AZ158: 5.605093558 | BA158: 2.520587119 | BB158: 2.328611573 | BC158: 7.682045714 | BD158: 9.312474558 | BE158: 0 | BF158: 0 | BG158: 0 | BH158: 0
AH159: Bitter | AK159: =IFERROR(AK101^2,"") -> 10.99204787 | AL159: 21.11341007 | AM159: 30.81642058 | AN159: 18.90112319 | AO159: 4.148351121 | AP159: 4.632488351 | AQ159: 7.092780067 | AR159: 17.03803789 | AS159: 0.3225477562 | AT159: 2.295947357 | AU159: 10.58093249 | AV159: 26.6994456 | AW159: 25.11717645 | AX159: 23.3716932 | AY159: 7.457174689 | AZ159: 11.49332287 | BA159: 1.78134207 | BB159: 8.498626331 | BC159: 14.10086192 | BD159: 20.31013003 | BE159: 2.450071079 | BF159: 0 | BG159: 0 | BH159: 0
AH160: Friendy | AK160: =IFERROR(AK102^2,"") -> 2.710982791 | AL160: 2.797450102 | AM160: 3.383575553 | AN160: 8.798313364 | AO160: 18.26977461 | AP160: 13.5560246 | AQ160: 6.152018394 | AR160: 5.068116021 | AS160: 14.25714047 | AT160: 6.481373194 | AU160: 9.198888499 | AV160: 6.652511525 | AW160: 3.537054107 | AX160: 0.7536185391 | AY160: 16.63143226 | AZ160: 12.14473476 | BA160: 16.77690253 | BB160: 1.30124672 | BC160: 2.758955988 | BD160: 6.595834586 | BE160: 6.701199765 | BF160: 16.37940907 | BG160: 0 | BH160: 0
AH161: For diets | AK161: =IFERROR(AK103^2,"") -> 10.32559916 | AL161: 19.38606273 | AM161: 26.86726026 | AN161: 20.58274432 | AO161: 8.380508584 | AP161: 7.885390789 | AQ161: 2.709452512 | AR161: 17.25658988 | AS161: 1.907771539 | AT161: 1.179698507 | AU161: 12.91270586 | AV161: 26.19167412 | AW161: 23.04319253 | AX161: 18.79748157 | AY161: 11.8348417 | AZ161: 14.80163429 | BA161: 4.976102039 | BB161: 5.579825115 | BC161: 8.081907519 | BD161: 20.85888326 | BE161: 2.392220263 | BF161: 1.169057331 | BG161: 12.15268269 | BH161: 0
AH162: =SUM(AK162:BH162) -> 2577.85288 | AK162: =SUM(AK138:AK161) -> 115.5398261 | AL162: =SUM(AL138:AL161) -> 189.4407532 | AM162: 303.6177187 | AN162: 184.5284436 | AO162: 185.9793562 | AP162: 141.3441058 | AQ162: 188.3178627 | AR162: 119.7095906 | AS162: 140.6252818 | AT162: 99.31325866 | AU162: 93.28533193 | AV162: 146.0689521 | AW162: 130.5905099 | AX162: 125.9282201 | AY162: 86.8725386 | AZ162: 82.68472765 | BA162: 68.52227042 | BB162: 27.74849141 | BC162: 49.41367814 | BD162: 57.07732244 | BE162: 11.54349111 | BF162: 17.5484664 | BG162: 12.15268269 | BH162: 0
AH165: =+AH138 -> Coke | AK165: =IFERROR((AK80-AI53)^2,"") -> 0 | AL165: =IFERROR((AL80-AJ53)^2,"") -> 0 | AM165: =IFERROR((AM80-AK53)^2,"") -> 0 | AN165: =IFERROR((AN80-AL53)^2,"") -> 0 | AO165: =IFERROR((AO80-AM53)^2,"") -> 0 | AP165: =IFERROR((AP80-AN53)^2,"") -> 0 | AQ165: =IFERROR((AQ80-AO53)^2,"") -> 0 | AR165: =IFERROR((AR80-AP53)^2,"") -> 0 | AS165: =IFERROR((AS80-AQ53)^2,"") -> 0 | AT165: =IFERROR((AT80-AR53)^2,"") -> 0 | AU165: =IFERROR((AU80-AS53)^2,"") -> 0 | AV165: =IFERROR((AV80-AT53)^2,"") -> 0 | AW165: =IFERROR((AW80-AU53)^2,"") -> 0 | AX165: =IFERROR((AX80-AV53)^2,"") -> 0 | AY165: =IFERROR((AY80-AW53)^2,"") -> 0 | AZ165: =IFERROR((AZ80-AX53)^2,"") -> 0 | BA165: =IFERROR((BA80-AY53)^2,"") -> 0 | BB165: =IFERROR((BB80-AZ53)^2,"") -> 0 | BC165: =IFERROR((BC80-BA53)^2,"") -> 0 | BD165: =IFERROR((BD80-BB53)^2,"") -> 0 | BE165: =IFERROR((BE80-BC53)^2,"") -> 0 | BF165: =IFERROR((BF80-BD53)^2,"") -> 0 | BG165: =IFERROR((BG80-BE53)^2,"") -> 0 | BH165: =IFERROR((BH80-BF53)^2,"") -> 0
D166: If your data is NOT in a 1-9 scale, then nominate your scale and enter your data in the following table | AH166: Pepsi | AK166: 0.0146206734 | AL166: 0 | AM166: 0 | AN166: 0 | AO166: 0 | AP166: 0 | AQ166: 0 | AR166: 0 | AS166: 0 | AT166: 0 | AU166: 0 | AV166: 0 | AW166: 0 | AX166: 0 | AY166: 0 | AZ166: 0 | BA166: 0 | BB166: 0 | BC166: 0 | BD166: 0 | BE166: 0 | BF166: 0 | BG166: 0 | BH166: 0
AH167: Fanta | AK167: 0.08963195477 | AL167: 0.634989358 | AM167: 0 | AN167: 0 | AO167: 0 | AP167: 0 | AR167: 0 | AS167: 0 | AT167: 0 | AU167: 0 | AV167: 0 | AW167: 0 | AX167: 0 | AY167: 0 | AZ167: 0 | BA167: 0 | BB167: 0 | BC167: 0 | BD167: 0 | BE167: 0 | BF167: 0 | BG167: 0 | BH167: 0
AH168: Sprite | AK168: 0.8619653865 | AL168: 1.577452346 | AM168: 0.1281304788 | AN168: 0 | AO168: 0 | AP168: 0 | AQ168: 0 | AR168: 0 | AS168: 0 | AT168: 0 | AU168: 0 | AV168: 0 | AW168: 0 | AX168: 0 | AY168: 0 | AZ168: 0 | BA168: 0 | BB168: 0 | BC168: 0 | BD168: 0 | BE168: 0 | BF168: 0 | BG168: 0 | BH168: 0
D169: Enter the maximum of the scale are you using? | E169: 5 | F169: = Maximum | AH169: Pepsi Max | AK169: 0.0005734164967 | AL169: 0.4767051563 | AM169: 0.4808982177 | AN169: 0.01207598514 | AO169: 0 | AP169: 0 | AQ169: 0 | AR169: 0 | AS169: 0 | AT169: 0 | AU169: 0 | AV169: 0 | AW169: 0 | AX169: 0 | AY169: 0 | AZ169: 0 | BA169: 0 | BB169: 0 | BC169: 0 | BD169: 0 | BE169: 0 | BF169: 0 | BG169: 0 | BH169: 0
D170: Minimum is fixed at one (1) | AH170: Coke Zero | AK170: 0.03903620058 | AL170: 0.394049501 | AM170: 0.2157517654 | AN170: 0.05134339242 | AO170: 0.3645453663 | AP170: 0 | AQ170: 0 | AR170: 0 | AS170: 0 | AT170: 0 | AU170: 0 | AV170: 0 | AW170: 0 | AX170: 0 | AY170: 0 | AZ170: 0 | BA170: 0 | BB170: 0 | BC170: 0 | BD170: 0 | BE170: 0 | BF170: 0 | BG170: 0 | BH170: 0
AH171: Water | AK171: 0.218999365 | AL171: 0.3753370144 | AM171: 0.02317623429 | AN171: 3.700595477 | AO171: 0.5211996843 | AP171: 0.9706659605 | AQ171: 0 | AR171: 0 | AS171: 0 | AT171: 0 | AU171: 0 | AV171: 0 | AW171: 0 | AX171: 0 | AY171: 0 | AZ171: 0 | BA171: 0 | BB171: 0 | BC171: 0 | BD171: 0 | BE171: 0 | BF171: 0 | BG171: 0 | BH171: 0
AH172: Mt Dew | AK172: 1.024025433 | AL172: 1.925302958 | AM172: 0.001041158239 | AN172: 0.9021909604 | AO172: 0.05186343915 | AP172: 8.050551245e-05 | AQ172: 0.4559865836 | AR172: 0 | AS172: 0 | AT172: 0 | AU172: 0 | AV172: 0 | AW172: 0 | AX172: 0 | AY172: 0 | AZ172: 0 | BA172: 0 | BB172: 0 | BC172: 0 | BD172: 0 | BE172: 0 | BF172: 0 | BG172: 0 | BH172: 0
D173: Enter your data on your scale as you defined above | E173: =+E16 -> Sweet | F173: For Kids | G173: High caffeine | H173: Modern | I173: Low in sugar | J173: Trusted | K173: Clear | L173: Tangy | M173: Adult | N173: Bitter | O173: Friendy | P173: For diets | AH173: Dr Pepper | AK173: 0.03989758021 | AL173: 0.4274942128 | AM173: 2.246906304 | AN173: 0.6512572825 | AO173: 0.08794767279 | AP173: 0.987126065 | AQ173: 0.8121340429 | AR173: 1.266582377 | AS173: 0 | AT173: 0 | AU173: 0 | AV173: 0 | AW173: 0 | AX173: 0 | AY173: 0 | AZ173: 0 | BA173: 0 | BB173: 0 | BC173: 0 | BD173: 0 | BE173: 0 | BF173: 0 | BG173: 0 | BH173: 0
D174: =+D17 -> Coke | E174: 1 | F174: 2 | AH174: Diet Coke | AK174: 0.04165010655 | AL174: 0.2383686794 | AM174: 0.09891864936 | AN174: 0.02875802692 | AO174: 0.2519696064 | AP174: 0.1565994734 | AQ174: 3.773088268 | AR174: 0.006536711116 | AS174: 0.2187832103 | AT174: 0 | AU174: 0 | AV174: 0 | AW174: 0 | AX174: 0 | AY174: 0 | AZ174: 0 | BA174: 0 | BB174: 0 | BC174: 0 | BD174: 0 | BE174: 0 | BF174: 0 | BG174: 0 | BH174: 0
D175: Pepsi | E175: 2 | F175: 3 | AH175: Pepsi Next | AK175: 0.3763934111 | AL175: 0.04886913201 | AM175: 0.5736927406 | AN175: 0.6852519174 | AO175: 0.04547977852 | AP175: 0.05334015103 | AQ175: 0.1027253804 | AR175: 0.7068456627 | AS175: 0.0008576415145 | AT175: 0.0001486468766 | AU175: 0 | AV175: 0 | AW175: 0 | AX175: 0 | AY175: 0 | AZ175: 0 | BA175: 0 | BB175: 0 | BC175: 0 | BD175: 0 | BE175: 0 | BF175: 0 | BG175: 0 | BH175: 0
D176: Fanta | E176: 3 | F176: 4 | AH176: Lift | AK176: 0.2616809119 | AL176: 2.272204858 | AM176: 0.0313808455 | AN176: 0.09785413861 | AO176: 0.2534005936 | AP176: 0.01639889277 | AQ176: 1.004727638 | AR176: 0.1278808447 | AS176: 2.032276504 | AT176: 0.01344053102 | AU176: 0.003606141273 | AV176: 0 | AW176: 0 | AX176: 0 | AY176: 0 | AZ176: 0 | BA176: 0 | BB176: 0 | BC176: 0 | BD176: 0 | BE176: 0 | BF176: 0 | BG176: 0 | BH176: 0
D177: Sprite | E177: 4 | F177: 5 | AH177: Sweet | AK177: 0.1694737951 | AL177: 0.006628880367 | AM177: 0.01951744918 | AN177: 1.972768992 | AO177: 0.4652765332 | AP177: 1.244586208 | AQ177: 0.0038990304 | AR177: 0.04797600174 | AS177: 0.08845711832 | AT177: 0.000170020122 | AU177: 0.2085878834 | AV177: 0.05991795771 | AW177: 0 | AX177: 0 | AY177: 0 | AZ177: 0 | BA177: 0 | BB177: 0 | BC177: 0 | BD177: 0 | BE177: 0 | BF177: 0 | BG177: 0 | BH177: 0
D178: Pepsi Max | E178: 5 | F178: 1 | AH178: For Kids | AK178: 0.4443517941 | AL178: 0.5686643883 | AM178: 0.2740706971 | AN178: 0.08282639096 | AO178: 0.295699646 | AP178: 0.9915752066 | AQ178: 0.4575622936 | AR178: 0.9586372159 | AS178: 0.08858905883 | AT178: 0.8393979086 | AU178: 1.397607125 | AV178: 0.00205149837 | AW178: 0.01585371923 | AX178: 0 | AY178: 0 | AZ178: 0 | BA178: 0 | BB178: 0 | BC178: 0 | BD178: 0 | BE178: 0 | BF178: 0 | BG178: 0 | BH178: 0
D179: Coke Zero | AH179: High caffeine | AK179: 0.8577192001 | AL179: 3.770335744 | AM179: 0.1976733774 | AN179: 5.837532323 | AO179: 0.1100279921 | AP179: 0.8862900885 | AQ179: 0.2150098771 | AR179: 0.2750313539 | AS179: 0.2262624925 | AT179: 1.522792963 | AU179: 0.0768977423 | AV179: 0.4416984996 | AW179: 0.5170747884 | AX179: 0.6831955436 | AY179: 0 | AZ179: 0 | BA179: 0 | BB179: 0 | BC179: 0 | BD179: 0 | BE179: 0 | BF179: 0 | BG179: 0 | BH179: 0
D180: Water | AH180: Modern | AK180: 0.6701941166 | AL180: 1.040027846 | AM180: 0.003929895501 | AN180: 0.6185894557 | AO180: 0.08303242446 | AP180: 0.07787345011 | AQ180: 0.008672729988 | AR180: 4.273194844 | AS180: 0.1393582075 | AT180: 0.04995291096 | AU180: 0.3438326751 | AV180: 0.2029095696 | AW180: 0.3519269664 | AX180: 1.954199296 | AY180: 0.8628306438 | AZ180: 0 | BA180: 0 | BB180: 0 | BC180: 0 | BD180: 0 | BE180: 0 | BF180: 0 | BG180: 0 | BH180: 0
D181: Mt Dew | AH181: Low in sugar | AK181: 0.7395054545 | AL181: 0.4698466602 | AM181: 0.1834677662 | AN181: 1.80632969 | AO181: 0.7679394134 | AP181: 0.2248839618 | AQ181: 9.077181404 | AR181: 0.05973374991 | AS181: 8.310656613 | AT181: 5.183844369 | AU181: 0.03047100847 | AV181: 0.5791167228 | AW181: 0.5000095291 | AX181: 3.020460164 | AY181: 3.550612854 | AZ181: 0.001664304249 | BA181: 0 | BB181: 0 | BC181: 0 | BD181: 0 | BE181: 0 | BF181: 0 | BG181: 0 | BH181: 0
D182: Dr Pepper | AH182: Trusted | AK182: 0.8723955037 | AL182: 0.4438700521 | AM182: 0.0343161281 | AN182: 0.1207845003 | AO182: 0.1180274823 | AP182: 0.04497895999 | AQ182: 1.338266006 | AR182: 0.07753090409 | AS182: 0.2676766237 | AT182: 0.02946056865 | AU182: 0.001255068185 | AV182: 0.009872595225 | AW182: 0.00853872647 | AX182: 0.12861469 | AY182: 0.5016625854 | AZ182: 0.3092287325 | BA182: 0.07041879425 | BB182: 0 | BC182: 0 | BD182: 0 | BE182: 0 | BF182: 0 | BG182: 0 | BH182: 0
D183: Diet Coke | AH183: Clear | AK183: 3.769645762 | AL183: 2.264233392 | AM183: 0.04625204518 | AN183: 7.99281561 | AO183: 0.2246795312 | AP183: 0.000267980857 | AQ183: 0.617488159 | AR183: 2.583491997 | AS183: 0.0002562530185 | AT183: 1.888043582 | AU183: 0.154594304 | AV183: 4.412936494 | AW183: 0.08477629619 | AX183: 0.03817807574 | AY183: 0.06517597857 | AZ183: 1.72982259 | BA183: 4.345242153 | BB183: 1.153298024 | BC183: 0 | BD183: 0 | BE183: 0 | BF183: 0 | BG183: 0 | BH183: 0
D184: Pepsi Next | AH184: Tangy | AK184: 1.556598882 | AL184: 2.55877513 | AM184: 0.3208050206 | AN184: 0.2425894977 | AO184: 0.6762408039 | AP184: 0.1126396044 | AQ184: 0.4733434573 | AR184: 0.006100488577 | AS184: 3.512804262 | AT184: 0.7062096375 | AU184: 0.3449230284 | AV184: 0.0797486685 | AW184: 0.3452249234 | AX184: 0.006332562882 | AY184: 0.2554124224 | AZ184: 0.2954633706 | BA184: 0.007277154523 | BB184: 0.002239621763 | BC184: 1.02863322 | BD184: 0 | BE184: 0 | BF184: 0 | BG184: 0 | BH184: 0
D185: Lift | AH185: Adult | AK185: 0.03613240318 | AL185: 0.8436717947 | AM185: 0.0804858201 | AN185: 0.1124133931 | AO185: 0.01794903479 | AP185: 0.2678635207 | AQ185: 0.2707000516 | AR185: 0.2816135639 | AS185: 0.02477050215 | AT185: 0.1797183269 | AU185: 1.270851699 | AV185: 0.3834244754 | AW185: 0.04061853719 | AX185: 0.05598751099 | AY185: 0.2153851421 | AZ185: 0.002416586377 | BA185: 1.766323308 | BB185: 0.1526369388 | BC185: 0.5304931991 | BD185: 0.09098351358 | BE185: 0 | BF185: 0 | BG185: 0 | BH185: 0
AH186: Bitter | AK186: 0.9206879342 | AL186: 0.04809080677 | AM186: 0.5432054314 | AN186: 0.005269541567 | AO186: 0.2099406647 | AP186: 0.2548159786 | AQ186: 0.2842658796 | AR186: 0.153698406 | AS186: 0.004614876188 | AT186: 0.004009286821 | AU186: 0.3548822074 | AV186: 2.04913124 | AW186: 0.8618719966 | AX186: 1.565237636 | AY186: 0.02174134459 | AZ186: 0.2242152171 | BA186: 0.8378303388 | BB186: 0.02825524916 | BC186: 0.1778967701 | BD186: 1.188120701 | BE186: 0.1889899211 | BF186: 0 | BG186: 0 | BH186: 0
AH187: Friendy | AK187: 1.021329311 | AL187: 0.1982725121 | AM187: 0.07749886087 | AN187: 0.719713214 | AO187: 4.031022566e-07 | AP187: 0.3517674796 | AQ187: 1.575892749 | AR187: 0.8933002466 | AS187: 0.2490885474 | AT187: 4.185519075 | AU187: 0.8374647072 | AV187: 0.006063474485 | AW187: 0.08177364755 | AX187: 0.3992823757 | AY187: 0.8308297684 | AZ187: 1.737817329 | BA187: 0.5816020786 | BB187: 0.7383586525 | BC187: 0.8506793495 | BD187: 0.1612576847 | BE187: 2.845403261e-05 | BF187: 0.6354453551 | BG187: 0 | BH187: 0
AH188: For diets | AK188: 1.127002117 | AL188: 0.1691418376 | AM188: 0.136260315 | AN188: 0.6418397387 | AO188: 1.732786525 | AP188: 1.511759974 | AQ188: 1.313411044 | AR188: 0.1750863829 | AS188: 3.294850292 | AT188: 0.002195916842 | AU188: 0.1576344769 | AV188: 0.7103617373 | AW188: 0.1471995053 | AX188: 0.3429346824 | AY188: 0.4763490882 | AZ188: 0.866058324 | BA188: 0.6626792972 | BB188: 0.04891527926 | BC188: 0.03104747103 | BD188: 0.2340811238 | BE188: 0.3843829694 | BF188: 0.06355631956 | BG188: 0.004816795687 | BH188: 0
AH189: =SUM(AK189:BH189) -> 202.2606512 | AK189: =SUM(AK165:AK188) -> 15.15351071 | AL189: =SUM(AL165:AL188) -> 20.75233226 | AM189: 5.7173792 | AN189: 26.28279953 | AO189: 6.278006595 | AP189: 8.153513462 | AQ189: 21.7843546 | AR189: 11.89324075 | AS189: 18.4593022 | AT189: 14.60490374 | AU189: 5.182608067 | AV189: 8.937232932 | AW189: 2.954868636 | AX189: 8.194422537 | AY189: 6.779999828 | AZ189: 5.166686453 | BA189: 8.271373124 | BB189: 2.123703766 | BC189: 2.61875001 | BD189: 1.674443023 | BE189: 0.5734013446 | BF189: 0.6990016747 | BG189: 0.004816795687 | BH189: 0
V192: 0 | AH192: =SQRT(AH189/AH162) -> 0.2801087249 | AK192: 1 | AL192: =+AH165 -> Coke | AM192: =+Z80 -> 3.940035671 | AN192: =+AA80 -> 3.978419923
AK193: 2 | AL193: =+AH166 -> Pepsi | AM193: =+Z81 -> 3.02175419 | AN193: 2.635828857
AK194: 3 | AL194: Fanta | AM194: =+Z82 -> 1.58796308 | AN194: 2.131476131
AK195: 4 | AL195: Sprite | AM195: =+Z83 -> 4.984147853 | AN195: 2.289787847
AK196: 5 | AL196: Pepsi Max | AM196: =+Z84 -> 7.195888076 | AN196: 5.536758161
AK197: 6 | AL197: Coke Zero | AM197: =+Z85 -> 6.515437224 | AN197: 5.085711661
AK198: 7 | AL198: Water | AM198: =+Z86 -> 2.470533471 | AN198: 7.515644286
AK199: 8 | AL199: Mt Dew | AM199: =+Z87 -> 4.210101043 | AN199: 2.759782688
AK200: 9 | AL200: Dr Pepper | AM200: =+Z88 -> 5.926742464 | AN200: 7.005860359
AK201: 10 | AL201: Diet Coke | AM201: =+Z89 -> 4.23835508 | AN201: 6.651683889
D202: Scale Recalculation | AK202: 11 | AL202: Pepsi Next | AM202: =+Z90 -> 5.652634513 | AN202: 3.611142182
D203: Enter your data on your scale as you defined above | E203: =+E173 -> Sweet | F203: =+F173 -> For Kids | G203: High caffeine | H203: Modern | I203: Low in sugar | J203: Trusted | K203: Clear | L203: Tangy | M203: Adult | N203: Bitter | O203: Friendy | P203: For diets | AK203: 12 | AL203: Lift | AM203: =+Z91 -> 3.531787371 | AN203: 1.606582019
D204: =+D174 -> Coke | E204: =IF((E174-1)*8/($E$169-1)+1>0.99,(E174-1)*8/($E$169-1)+1,"") -> 1 | F204: 3 | AK204: 13 | AL204: =+AH177 -> Sweet | AM204: =+Z92 -> 2.722317618 | AN204: 2.199988615
D205: =+D175 -> Pepsi | E205: =IF((E175-1)*8/($E$169-1)+1>0.99,(E175-1)*8/($E$169-1)+1,"") -> 3 | F205: 5 | AK205: 14 | AL205: =+AH178 -> For Kids | AM205: =+Z93 -> 1.488086128 | AN205: 3.420611416
D206: Fanta | E206: =IF((E176-1)*8/($E$169-1)+1>0.99,(E176-1)*8/($E$169-1)+1,"") -> 5 | F206: 7 | AK206: 15 | AL206: High caffeine | AM206: =+Z94 -> 7.0617827 | AN206: 4.494668314
D207: Sprite | E207: =IF((E177-1)*8/($E$169-1)+1>0.99,(E177-1)*8/($E$169-1)+1,"") -> 7 | F207: 9 | AK207: 16 | AL207: Modern | AM207: =+Z95 -> 6.201653679 | AN207: 3.45009818
D208: Pepsi Max | E208: =IF((E178-1)*8/($E$169-1)+1>0.99,(E178-1)*8/($E$169-1)+1,"") -> 9 | F208: 1 | AK208: 17 | AL208: Low in sugar | AM208: =+Z96 -> 6.737439217 | AN208: 6.296243829
D209: Coke Zero | E209: =IF((E179-1)*8/($E$169-1)+1>0.99,(E179-1)*8/($E$169-1)+1,"") ->  | AK209: 18 | AL209: Trusted | AM209: =+Z97 -> 2.911187373 | AN209: 5.469494886
D210: Water | E210: =IF((E180-1)*8/($E$169-1)+1>0.99,(E180-1)*8/($E$169-1)+1,"") ->  | AK210: 19 | AL210: Clear | AM210: =+Z98 -> 1.263288978 | AN210: 6.428883806
D211: Mt Dew | E211: =IF((E181-1)*8/($E$169-1)+1>0.99,(E181-1)*8/($E$169-1)+1,"") ->  | AK211: 20 | AL211: Tangy | AM211: =+Z99 -> 4.295729523 | AN211: 2.233731743
D212: Dr Pepper | E212: =IF((E182-1)*8/($E$169-1)+1>0.99,(E182-1)*8/($E$169-1)+1,"") ->  | AK212: 21 | AL212: Adult | AM212: =+Z100 -> 4.745463065 | AN212: 6.062505563
D213: Diet Coke | E213: =IF((E183-1)*8/($E$169-1)+1>0.99,(E183-1)*8/($E$169-1)+1,"") ->  | AK213: 22 | AL213: Bitter | AM213: =+Z101 -> 5.828950735 | AN213: 7.716627854
D214: Pepsi Next | E214: =IF((E184-1)*8/($E$169-1)+1>0.99,(E184-1)*8/($E$169-1)+1,"") ->  | AK214: 23 | AL214: Friendy | AM214: =+Z102 -> 1.910253223 | AN214: 4.43277447
D215: Lift | E215: =IF((E185-1)*8/($E$169-1)+1>0.99,(E185-1)*8/($E$169-1)+1,"") ->  | AK215: 24 | AL215: For diets | AM215: =+Z103 -> 4.492762985 | AN215: 8
AG221: Min | AH221: =MIN(E17:P28) -> 1
AG222: Max | AH222: =MAX(E17:P28) -> 9
AH223: =+AH222+1 -> 10
AH224: 1 | AI224: 2 | AJ224: 3 | AK224: 4 | AL224: 5 | AM224: 6 | AN224: 7 | AO224: 8 | AP224: 9 | AQ224: 10 | AR224: 11 | AS224: 12
AG225: 1 | AH225: =IF(E17<>"",$AH$223-E17,"") -> 4 | AI225: =IF(F17<>"",$AH$223-F17,"") -> 5 | AJ225: =IF(G17<>"",$AH$223-G17,"") -> 3 | AK225: 5 | AL225: 7 | AM225: 1 | AN225: 9 | AO225: 5 | AP225: 3 | AQ225: 8 | AR225: 5 | AS225: 8
AG226: 2 | AH226: =IF(E18<>"",$AH$223-E18,"") -> 1 | AI226: 4 | AJ226: 3 | AK226: 3 | AL226: 9 | AM226: 3 | AN226: 9 | AO226: 5 | AP226: 4 | AQ226: 9 | AR226: 4 | AS226: 9
AG227: 3 | AH227: 2 | AI227: 1 | AJ227: 8 | AK227: 7 | AL227: 9 | AM227: 5 | AN227: 6 | AO227: 3 | AP227: 8 | AQ227: 9 | AR227: 4 | AS227: 9
AG228: 4 | AH228: 6 | AI228: 6 | AJ228: 9 | AK228: 4 | AL228: 4 | AM228: 5 | AN228: 3 | AO228: 2 | AP228: 5 | AQ228: 8 | AR228: 4 | AS228: 7
AG229: 5 | AH229: 7 | AI229: 8 | AJ229: 1 | AK229: 4 | AL229: 3 | AM229: 7 | AN229: 8 | AO229: 5 | AP229: 4 | AQ229: 3 | AR229: 8 | AS229: 3
AG230: 6 | AH230: 5 | AI230: 6 | AJ230: =IF(G22<>"",$AH$223-G22,"") -> 3 | AK230: =IF(H22<>"",$AH$223-H22,"") -> 2 | AL230: =IF(I22<>"",$AH$223-I22,"") -> 1 | AM230: =IF(J22<>"",$AH$223-J22,"") -> 5 | AN230: =IF(K22<>"",$AH$223-K22,"") -> 8 | AO230: =IF(L22<>"",$AH$223-L22,"") -> 6 | AP230: =IF(M22<>"",$AH$223-M22,"") -> 4 | AQ230: =IF(N22<>"",$AH$223-N22,"") -> 5 | AR230: =IF(O22<>"",$AH$223-O22,"") -> 8 | AS230: =IF(P22<>"",$AH$223-P22,"") -> 3
AG231: 7 | AH231: 8 | AI231: 5 | AJ231: 9 | AK231: 8 | AL231: 1 | AM231: 1 | AN231: 1 | AO231: 7 | AP231: 5 | AQ231: 6 | AR231: 7 | AS231: 1
AG232: 8 | AH232: 2 | AI232: 6 | AJ232: 4 | AK232: 7 | AL232: 6 | AM232: 5 | AN232: 4 | AO232: 1 | AP232: 4 | AQ232: 7 | AR232: 6 | AS232: 7
AG233: 9 | AH233: 8 | AI233: 9 | AJ233: 5 | AK233: 6 | AL233: 7 | AM233: 6 | AN233: 7 | AO233: 4 | AP233: 2 | AQ233: 1 | AR233: 8 | AS233: 6
AG234: 10 | AH234: 7 | AI234: 8 | AJ234: 3 | AK234: 6 | AL234: 8 | AM234: 3 | AN234: 7 | AO234: 5 | AP234: 2 | AQ234: 3 | AR234: 1 | AS234: 2
AG235: 11 | AH235: 4 | AI235: 4 | AJ235: 2 | AK235: 2 | AL235: 4 | AM235: 5 | AN235: 7 | AO235: 4 | AP235: 6 | AQ235: 5 | AR235: 4 | AS235: 6
AG236: 12 | AH236: 2 | AI236: 4 | AJ236: 8 | AK236: 4 | AL236: 7 | AM236: 6 | AN236: 4 | AO236: 1 | AP236: 8 | AQ236: 7 | AR236: 5 | AS236: 8
AH238: 1 | AI238: 2 | AJ238: 3 | AK238: 4 | AL238: 5 | AM238: 6 | AN238: 7 | AO238: 8 | AP238: 9 | AQ238: 10 | AR238: 11 | AS238: 12
AG239: 1 | AH239: =+AH225 -> 4 | AI239: =+AH226 -> 1 | AJ239: =+AH227 -> 2 | AK239: =+AH228 -> 6 | AL239: =+AH229 -> 7 | AM239: =+AH230 -> 5 | AN239: =+AH231 -> 8 | AO239: =+AH232 -> 2 | AP239: =+AH233 -> 8 | AQ239: =+AH234 -> 7 | AR239: =+AH235 -> 4 | AS239: =+AH236 -> 2
AG240: 2 | AH240: =+AI225 -> 5 | AI240: =+AI226 -> 4 | AJ240: =+AI227 -> 1 | AK240: =+AI228 -> 6 | AL240: =+AI229 -> 8 | AM240: =+AI230 -> 6 | AN240: =+AI231 -> 5 | AO240: =+AI232 -> 6 | AP240: =+AI233 -> 9 | AQ240: =+AI234 -> 8 | AR240: =+AI235 -> 4 | AS240: =+AI236 -> 4
AG241: 3 | AH241: =+AJ225 -> 3 | AI241: =+AJ226 -> 3 | AJ241: =+AJ227 -> 8 | AK241: =+AJ228 -> 9 | AL241: =+AJ229 -> 1 | AM241: =+AJ230 -> 3 | AN241: =+AJ231 -> 9 | AO241: =+AJ232 -> 4 | AP241: =+AJ233 -> 5 | AQ241: =+AJ234 -> 3 | AR241: =+AJ235 -> 2 | AS241: =+AJ236 -> 8
AG242: 4 | AH242: =+AK225 -> 5 | AI242: =+AK226 -> 3 | AJ242: =+AK227 -> 7 | AK242: =+AK228 -> 4 | AL242: =+AK229 -> 4 | AM242: =+AK230 -> 2 | AN242: =+AK231 -> 8 | AO242: =+AK232 -> 7 | AP242: =+AK233 -> 6 | AQ242: =+AK234 -> 6 | AR242: =+AK235 -> 2 | AS242: =+AK236 -> 4
AG243: 5 | AH243: =+AL225 -> 7 | AI243: =+AL226 -> 9 | AJ243: =+AL227 -> 9 | AK243: =+AL228 -> 4 | AL243: =+AL229 -> 3 | AM243: =+AL230 -> 1 | AN243: =+AL231 -> 1 | AO243: =+AL232 -> 6 | AP243: =+AL233 -> 7 | AQ243: =+AL234 -> 8 | AR243: =+AL235 -> 4 | AS243: =+AL236 -> 7
AG244: 6 | AH244: =+AM225 -> 1 | AI244: =+AM226 -> 3 | AJ244: =+AM227 -> 5 | AK244: =+AM228 -> 5 | AL244: =+AM229 -> 7 | AM244: =+AM230 -> 5 | AN244: =+AM231 -> 1 | AO244: =+AM232 -> 5 | AP244: =+AM233 -> 6 | AQ244: =+AM234 -> 3 | AR244: =+AM235 -> 5 | AS244: =+AM236 -> 6
AG245: 7 | AH245: =+AN225 -> 9 | AI245: =+AN226 -> 9 | AJ245: =+AN227 -> 6 | AK245: =+AN228 -> 3 | AL245: =+AN229 -> 8 | AM245: =+AN230 -> 8 | AN245: =+AN231 -> 1 | AO245: =+AN232 -> 4 | AP245: =+AN233 -> 7 | AQ245: =+AN234 -> 7 | AR245: =+AN235 -> 7 | AS245: =+AN236 -> 4
AG246: 8 | AH246: =+AO225 -> 5 | AI246: =+AO226 -> 5 | AJ246: =+AO227 -> 3 | AK246: =+AO228 -> 2 | AL246: =+AO229 -> 5 | AM246: =+AO230 -> 6 | AN246: =+AO231 -> 7 | AO246: =+AO232 -> 1 | AP246: =+AO233 -> 4 | AQ246: =+AO234 -> 5 | AR246: =+AO235 -> 4 | AS246: =+AO236 -> 1
AG247: 9 | AH247: =+AP225 -> 3 | AI247: =+AP226 -> 4 | AJ247: =+AP227 -> 8 | AK247: =+AP228 -> 5 | AL247: =+AP229 -> 4 | AM247: =+AP230 -> 4 | AN247: =+AP231 -> 5 | AO247: =+AP232 -> 4 | AP247: =+AP233 -> 2 | AQ247: =+AP234 -> 2 | AR247: =+AP235 -> 6 | AS247: =+AP236 -> 8
... 16 more rows
